Cogmind - Beta 11 @@@ ROGUE MODE // 2022.04.23 @ 11:54:59 Player: Vectis Result: Self-destructed Performance ------------- Evolutions (9) 4500 Regions Visited (28) 5600 Robots Destroyed (300) 1500 Value Destroyed (15173) 15173 Prototype IDs (26) 520 Alien Tech Used (0) 0 Bonus (16911) 16911 TOTAL SCORE: 44204 Bonus ------- High Alert Combat Kills 710 Follower Combat Kills 12480 Entered Garrisons 2400 Used RIF Installer 6000 Friendly Fire -4679 Cogmind --------- Core Integrity 1381/1600 Matter 300/300 Energy 149/150 System Corruption 0% Temperature Cool (2) Movement Flying (27) Location -1/Access Parts ------- > --- POWER (1) -------- Micro Antimatter Reactor > --- PROPULSION (2) --- Improved Cesium-ion Thruster Advanced Surge Thruster > --- UTILITY (20) ----- Advanced Weight Redist. System Improved Utility Shielding Hacking Suite Advanced Hacking Suite Advanced Hacking Suite System Shield System Shield Advanced System Shield Advanced System Shield Advanced System Shield Experimental System Shield Relay Coupler [NC] (19) Relay Coupler [ARC] (9) Relay Coupler [Swarmer] (15) Relay Coupler [Grunt] (2) Relay Coupler [Sentry] (4) Relay Coupler [Demolisher] (9) Relay Coupler [Specialist] (6) Relay Coupler [Hunter] (3) Relay Coupler [Behemoth] (2) > --- WEAPON (2) ------- Advanced Datajack Advanced Remote Datajack > --- INVENTORY (5) ---- Advanced Phase Shifter Relay Coupler [NC] (26) Relay Coupler [Grunt] (37) Advanced Remote Datajack Plasma Sword Peak State ------------ > --- POWER ------------ Micro Antimatter Reactor > --- PROPULSION ------- Improved Cesium-ion Thruster Advanced Surge Thruster > --- UTILITY ---------- Advanced Weight Redist. System Improved Utility Shielding Experimental Weapon Shielding Hacking Suite Advanced Hacking Suite System Shield System Shield Advanced System Shield Advanced System Shield Advanced System Shield Experimental System Shield Relay Coupler [ARC] Relay Coupler [Swarmer] Relay Coupler [Grunt] Relay Coupler [Sentry] Relay Coupler [Demolisher] Relay Coupler [Specialist] Relay Coupler [Hunter] Relay Coupler [Behemoth] Advanced System Restoration Module > --- WEAPON ----------- Advanced Remote Datajack Plasma Sword > --- INVENTORY -------- Relay Coupler [NC] Relay Coupler [NC] Relay Coupler [Swarmer] Relay Coupler [Grunt] Advanced Remote Datajack [Rating: 131] Favorites ----------- Power Backup Power III Engine Backup Power III Power Core Light Nuclear Core Reactor Cold Fusion Reactor Propulsion Light Treads Treads Light Treads Leg Aluminum Leg Wheel Wheel Flight Unit Improved Cesium-ion Thruster Utility Hacking Suite Device Experimental Sensor Array Storage Huge Storage Unit Processor Improved Signal Interpreter Hackware Hacking Suite Protection Improved Utility Shielding Weapon Plasma Sword Energy Gun Beamcaster Energy Cannon Enhanced Nova Cannon Ballistic Gun Enhanced Autogun Ballistic Cannon Light Cannon Launcher Mini Grenade Launcher Special Weapon Improved Remote Datajack Slashing Weapon Plasma Sword Special Melee Weapon Datajack Build | -11 -10 -10 -9 -9 -9 -8 -8 -7 -7 -7 -7 -6 -6 -6 -6 -5 -5 -5 -5 -4 -4 -4 -4 -3 -3 -2 -2 -1 ------- Run | Scr Mat Min Mat Sto Gar Mat Gar Fac Gar Fac Gar Fac Gar Fac Gar Fac Gar Fac Gar Fac Gar Fac Gar Res Gar Res Gar Acc Slots Evolved 18 | . . . 2 . . 2 . 2 . . . 2 . . . 2 . . . 2 . . . 2 . 2 . 2 Power . | . . . . . . . . . . . . . . . . . . . . . . . . . . . . . Propulsion . | . . . . . . . . . . . . . . . . . . . . . . . . . . . . . Utility 18 | . . . 2 . . 2 . 2 . . . 2 . . . 2 . . . 2 . . . 2 . 2 . 2 Weapon . | . . . . . . . . . . . . . . . . . . . . . . . . . . . . . Parts Attached 718 | 2 27 15 42 21 27 51 16 22 2 19 41 14 18 10 4 29 23 12 33 23 27 16 30 43 17 49 34 51 Power 36 | . 2 1 1 1 . 2 2 2 . 2 5 1 . . . 1 1 2 . . 3 . . . . . 1 9 Engine 25 | . 2 1 1 . . 1 1 2 . 2 2 1 . . . 1 1 2 . . . . . . . . . 8 Core 8 | . . . . . . 1 1 . . . 3 . . . . . . . . . 3 . . . . . . . Reactor 3 | . . . . 1 . . . . . . . . . . . . . . . . . . . . . . 1 1 Propulsion 88 | 2 1 . 8 9 2 9 6 3 . . 1 . 4 2 . 2 6 1 3 . 4 . 5 7 6 2 2 3 Treads 32 | 2 1 . 7 9 2 7 4 . . . . . . . . . . . . . . . . . . . . . Leg 1 | . . . . . . . . . . . . . . . . . . . . . 1 . . . . . . . Wheel 2 | . . . . . . 2 . . . . . . . . . . . . . . . . . . . . . . Hover . | . . . . . . . . . . . . . . . . . . . . . . . . . . . . . Flight 53 | . . . 1 . . . 2 3 . . 1 . 4 2 . 2 6 1 3 . 3 . 5 7 6 2 2 3 Utility 213 | . 5 4 8 4 10 19 6 12 2 11 11 8 11 4 3 7 8 2 7 8 5 5 6 7 6 12 7 15 Device 47 | . 2 1 3 1 . 3 2 2 . 4 1 2 . 2 . 1 2 1 1 2 1 1 2 . 1 4 3 5 Storage 9 | . 2 1 . . 2 2 . . . . . . . . . . . . 1 . . . . . 1 . . . Processor 10 | . . . 3 . . . . 1 . 1 . 1 . . . . . . . 1 . . . . . 2 . 1 Hackware 70 | . . . . . 5 3 . 8 . 1 6 3 4 1 2 4 2 1 . 4 2 3 1 7 1 3 2 7 Protection 77 | . 1 2 2 3 3 11 4 1 2 5 4 2 7 1 1 2 4 . 5 1 2 1 3 . 3 3 2 2 Artifact . | . . . . . . . . . . . . . . . . . . . . . . . . . . . . . Weapon 381 | . 19 10 25 7 15 21 2 5 . 6 24 5 3 4 1 19 8 7 23 15 15 11 19 29 5 35 24 24 Energy Gun 10 | . . . 3 . . 4 . . . . 2 . . . . . . . . . . . . . . . 1 . Energy Cannon 6 | . . . . 1 . . . . . . . . . . . . . . . . . . . . . 3 1 1 Ballistic Gun 33 | . 3 2 3 4 9 9 2 . . . 1 . . . . . . . . . . . . . . . . . Ballistic Cannon 25 | . 11 4 10 . . . . . . . . . . . . . . . . . . . . . . . . . Launcher 40 | . 1 2 1 2 1 6 . 1 . 1 4 2 1 1 . 1 . 1 2 2 2 . 2 1 . 2 3 1 Special Weapon 132 | . 2 1 8 . . . . . . 3 9 3 1 3 . 9 4 3 8 7 5 6 7 14 3 16 9 11 Impact Weapon . | . . . . . . . . . . . . . . . . . . . . . . . . . . . . . Slashing Weapon 126 | . 2 . . . 1 . . 3 . 2 8 . 1 . 1 9 4 3 13 6 8 5 10 14 2 14 10 10 Piercing Weapon . | . . . . . . . . . . . . . . . . . . . . . . . . . . . . . Special Melee Weapon 9 | . . 1 . . 4 2 . 1 . . . . . . . . . . . . . . . . . . . 1 Unidentified Prototypes 12 | . . 2 5 2 . . . . . . . 1 . . . 1 . . . . . . . . . . 1 . Parts Lost 63 | . . . . 1 . 19 4 1 1 2 1 . 3 . . 4 . . 1 1 2 1 5 5 6 4 1 1 Power 14 | . . . . . . 2 . 1 . 2 . . 1 . . 1 . . . 1 1 . 1 2 1 . 1 . Propulsion 12 | . . . . . . 5 . . . . . . . . . 1 . . . . . . 1 2 2 1 . . Utility 28 | . . . . 1 . 8 3 . . . 1 . 2 . . 2 . . 1 . . 1 3 1 1 3 . 1 Weapon 9 | . . . . . . 4 1 . 1 . . . . . . . . . . . 1 . . . 2 . . . Highest Loss Streak 10 | . . . . 1 . 10 2 1 1 1 1 . 2 . . 3 . . 1 1 1 1 5 2 2 2 1 1 To Critical Strikes . | . . . . . . . . . . . . . . . . . . . . . . . . . . . . . Average Slot Usage (%) 95 | . 99 100 99 99 96 87 95 98 99 96 89 95 91 98 99 96 90 96 96 96 99 99 92 95 98 93 89 95 Engine 4 | . 14 14 10 3 . . . 6 7 6 2 3 . 5 6 4 1 4 5 4 4 5 4 3 3 4 . 2 Reactor 1 | . . . . 7 11 6 . . . . . . . . . . . . . . . . . . . . . . Treads 6 | . 27 28 21 22 22 17 16 . . . . . . . . . . . . . . . . . . . . . Flight 7 | . . . . . . . . 14 15 15 15 13 12 13 13 10 10 11 10 10 10 10 9 8 8 7 8 8 Device 1 | . 1 . 13 . . 3 8 7 . 6 . 3 . 5 . 1 . 5 . 1 . 1 . 1 . 3 . 1 Storage 2 | . 14 14 11 11 3 8 9 . . . . . . . . . . . . . . . . . . . . . Processor 6 | . . . 15 22 14 6 . 7 7 10 7 6 6 6 6 5 5 5 5 5 5 5 5 4 4 4 4 . Hackware 41 | . . . . . 9 7 9 44 45 35 41 44 51 38 47 55 54 58 52 60 67 65 55 60 68 63 60 68 Protection 8 | . 12 13 3 10 12 18 24 1 7 6 10 9 7 13 11 3 8 . 9 5 . . 8 7 2 3 7 7 Ballistic Gun 2 | . . 1 . 21 20 15 17 . . . . . . . . . . . . . . . . . . . . . Ballistic Cannon 2 | . 21 26 7 . . . . . . . . . . . . . . . . . . . . . . . . . Special Weapon 2 | . 3 . 2 . . . . . . 5 5 5 5 5 6 3 4 3 3 2 3 3 3 3 3 2 3 1 Slashing Weapon 2 | . 3 . . . . . . 6 7 6 2 6 5 6 5 4 2 2 2 2 4 2 2 2 3 1 . 3 Naked Turns . | . . . . . . . . . . . . . . . . . . . . . . . . . . . . . Heaviest Build 114 | 10 94 105 108 103 108 114 98 10 7 10 12 11 10 11 11 11 10 8 12 10 10 9 12 13 11 18 14 22 Greatest Support 40 | 40 40 40 40 40 40 40 40 10 10 10 11 11 11 11 11 12 12 8 12 10 12 12 12 14 13 12 19 21 Greatest Overweight (x) 30 | . 2 2 4 2 2 4 30 3 . 2 1 . . . . . 3 2 1 . 1 . 1 2 1 1 1 2 Average Overweight (x) . | . . 2 2 2 . 2 3 . . . . . . . . . . . . . . . . . . . . . Largest Inventory Capacity 25 | 8 25 25 25 25 25 25 25 25 5 5 5 5 5 5 5 5 5 5 5 5 5 5 5 5 5 5 5 5 Average Capacity 9 | 8 16 25 25 25 11 24 25 5 5 5 5 5 5 5 5 5 5 5 5 5 5 5 5 5 5 5 5 5 Most Carried 25 | 6 19 25 25 25 25 25 25 24 4 5 5 5 5 5 5 5 5 5 5 5 5 5 5 5 5 5 5 5 Average Carried 8 | 6 12 24 24 24 10 24 24 5 3 4 3 4 4 3 3 4 2 4 4 4 3 4 3 4 3 4 3 4 Final Capacity 25 | 8 25 25 25 25 25 25 25 5 5 5 5 5 5 5 5 5 5 5 5 5 5 5 5 5 5 5 5 5 Final Carried 25 | 6 19 24 25 25 25 25 25 4 3 5 5 5 5 5 5 4 4 4 5 5 5 5 5 5 3 5 5 5 Class Distribution -------------------- 54% | Commander-Sprinter 18% | Mutant 17% | Commander-Mutant 4% | Hacker-Mutant 3% | Bothacker-Mutant Dominant Class ---------------- Mutant | -10/Materials Mutant | -10/Mines Mutant | -9/Materials Mutant | -9/Storage Commander-Mutant | -9/Garrison Commander-Mutant | -8/Materials Bothacker-Mutant | -8/Garrison Wizard-Mutant | -7/Factory Wizard-Mutant | -7/Garrison Hacker-Mutant | -7/Factory Commander-Mutant | -7/Garrison Commander-Mutant | -6/Factory Commander-Sprinter | -6/Garrison Commander-Mutant | -6/Factory Commander-Mutant | -6/Garrison Commander-Mutant | -5/Factory Commander-Sprinter | -5/Garrison Commander-Sprinter | -5/Factory Commander-Sprinter | -5/Garrison Commander-Sprinter | -4/Factory Commander-Sprinter | -4/Garrison Commander-Sprinter | -4/Factory Commander-Sprinter | -4/Garrison Commander-Sprinter | -3/Research Commander-Sprinter | -3/Garrison Commander-Sprinter | -2/Research Commander-Sprinter | -2/Garrison Commander-Sprinter | -1/Access Resources | -11 -10 -10 -9 -9 -9 -8 -8 -7 -7 -7 -7 -6 -6 -6 -6 -5 -5 -5 -5 -4 -4 -4 -4 -3 -3 -2 -2 -1 ----------- Run | Scr Mat Min Mat Sto Gar Mat Gar Fac Gar Fac Gar Fac Gar Fac Gar Fac Gar Fac Gar Fac Gar Fac Gar Res Gar Res Gar Acc Matter Collected 20116 | 200 787 2644 892 1002 873 1550 1178 355 10 233 750 214 426 213 432 285 977 372 624 507 425 253 443 855 613 1313 720 970 Remotely . | . . . . . . . . . . . . . . . . . . . . . . . . . . . . . Salvage Created 12062 | . 772 2293 1214 2165 540 1324 692 72 . 329 194 93 45 81 . . 20 355 26 315 11 151 188 223 77 341 171 370 Parts 662 | . 54 79 88 122 40 95 32 7 . 20 8 9 5 12 . . 5 8 2 11 . 4 9 12 . 8 6 26 Haulers Intercepted 13 | . 2 . 4 6 . 1 . . . . . . . . . . . . . . . . . . . . . . Recyclers Shooed 18 | . . 15 . 3 . . . . . . . . . . . . . . . . . . . . . . . . Parts Field Recycled . | . . . . . . . . . . . . . . . . . . . . . . . . . . . . . Retrieved Matter . | . . . . . . . . . . . . . . . . . . . . . . . . . . . . . Parts Self-Destructed . | . . . . . . . . . . . . . . . . . . . . . . . . . . . . . Prevented . | . . . . . . . . . . . . . . . . . . . . . . . . . . . . . Kills | -11 -10 -10 -9 -9 -9 -8 -8 -7 -7 -7 -7 -6 -6 -6 -6 -5 -5 -5 -5 -4 -4 -4 -4 -3 -3 -2 -2 -1 ------- Run | Scr Mat Min Mat Sto Gar Mat Gar Fac Gar Fac Gar Fac Gar Fac Gar Fac Gar Fac Gar Fac Gar Fac Gar Res Gar Res Gar Acc Combat Hostiles Destroyed 145 | . 12 7 21 24 18 32 10 . . 5 5 1 1 1 . . . 1 . 1 1 . 1 . 1 1 1 1 Melee 8 | . . . . . . . . . . 2 . . 1 . . . . 1 . . . . . . 1 1 1 1 Guns 73 | . . . 10 23 9 21 10 . . . . . . . . . . . . . . . . . . . . . Cannons 24 | . 12 5 7 . . . . . . . . . . . . . . . . . . . . . . . . . AOE 40 | . . 2 4 1 9 11 . . . 3 5 1 . 1 . . . . . 1 1 . 1 . . . . . Classes Destroyed 18 | . 9 1 1 2 1 2 1 . . . . 1 . . . . . . . . . . . . . . . . Worker 34 | . 1 7 3 3 . 6 . . . 1 . 1 . 3 . . . 3 . . . . . 5 . 1 . . Builder 13 | . 1 4 1 . . 3 . . . . . 1 . . . . . . . . . . . . . . . 3 Tunneler 12 | . 2 5 . 1 . 1 . 1 . . . . . . . . . . . . . . . . . . . 2 Hauler 13 | . 2 . 4 6 . 1 . . . . . . . . . . . . . . . . . . . . . . Recycler 52 | . 1 29 5 8 . . . . . 2 . . . . . . . 1 . 2 . 1 . . . 2 . 1 Mechanic 2 | . 1 . . . . 1 . . . . . . . . . . . . . . . . . . . . . . Operator 12 | . 4 . 4 1 . . . 1 . . . . . 1 . . 1 . . . . . . . . . . . Watcher 21 | . 3 . 5 2 1 1 . 1 . 1 1 . . . . . . . 1 . . 1 1 1 . . . 2 Swarmer 31 | . . 3 7 3 4 8 1 . . 3 . . 1 1 . . . . . . . . . . . . . . Cutter 6 | . . . . . . . 3 . . . . . 1 . . . . . . . 1 . 1 . . . . . Grunt 72 | . 12 4 8 7 12 13 4 . . . 5 . . . . . . 2 . 1 . . . 1 . 1 2 . Brawler 3 | . . . . 1 . 1 1 . . . . . . . . . . . . . . . . . . . . . Duelist 3 | . . . . . 1 1 1 . . . . . . . . . . . . . . . . . . . . . Sentry 24 | . . . 6 12 1 5 . . . . . . . . . . . . . . . . . . . . . . Demolisher 1 | . . . . . . 1 . . . . . . . . . . . . . . . . . . . . . . Specialist 2 | . . . . . . 2 . . . . . . . . . . . . . . . . . . . . . . Hunter 3 | . . . . . . . . . . . . 1 . . . . . . . . . . . . 1 . . 1 Programmer 4 | . . . . 1 . 1 . . . 2 . . . . . . . . . . . . . . . . . . Best Kill Streak 11 | . 5 3 4 6 11 6 4 2 . 3 2 1 1 1 . . . 3 1 1 1 1 1 2 1 2 1 2 Combat Bots Only 11 | . 2 3 4 5 11 5 4 . . 3 2 1 1 1 . . . 1 . 1 1 . 1 . 1 1 1 1 Max Kills in Single Turn 4 | . 2 2 4 2 3 3 1 1 . 2 2 1 1 1 . . 1 1 1 1 1 1 1 1 1 1 1 1 Gunslinging 1 | . . . . . 1 1 . . . . . . . . . . . . . . . . . . . . . . Exploded 4 | . . 2 4 1 3 2 . . . 2 2 1 . 1 . . . . . 1 1 . 1 . . . . . Melee 1 | . . . . . . . . . . 1 . . 1 . . . . 1 . . . . . . 1 1 1 1 Uniques/NPCs Destroyed 1 | . . 1 . . . . . . . . . . . . . . . . . . . . . . . . . . YI-UF0 (-10/Mines) Combat | -11 -10 -10 -9 -9 -9 -8 -8 -7 -7 -7 -7 -6 -6 -6 -6 -5 -5 -5 -5 -4 -4 -4 -4 -3 -3 -2 -2 -1 -------- Run | Scr Mat Min Mat Sto Gar Mat Gar Fac Gar Fac Gar Fac Gar Fac Gar Fac Gar Fac Gar Fac Gar Fac Gar Res Gar Res Gar Acc Damage Taken 11322 | . 200 235 557 764 617 2772 328 105 186 296 266 100 488 . 95 192 225 59 117 251 360 172 386 568 662 578 198 545 Core 3177 | . 12 25 111 35 135 446 45 59 136 117 98 49 251 . 35 69 86 59 34 107 107 41 113 243 280 190 75 219 Absorbed by Shields 470 | . . . 65 53 . 58 . . . . . . 56 . . . 22 . 2 29 . . 29 48 24 49 35 . Redirected to Shielding 717 | . . . . . . . 3 . 20 57 25 10 90 . 17 18 35 . 15 14 . . 3 146 36 46 74 108 Regen/Repaired (Parts) 1989 | . 49 . 37 111 . 146 . 27 . 66 76 . . 117 17 20 . . 96 84 143 124 72 166 105 240 34 259 Core Remaining (%) 60 | 100 . 85 . . 29 . 10 . . . 41 . . . 60 . . . 75 . . . 68 . 59 . 81 . Volleys Fired 1317 | . 63 105 103 91 52 96 63 2 . 7 65 22 27 25 39 30 45 36 42 39 22 14 34 50 48 96 49 52 Largest 2 | . 2 2 2 2 2 2 2 1 . 1 1 1 1 1 1 1 1 1 1 1 1 1 1 1 1 1 1 1 Hottest 123 | . 70 92 123 70 70 95 50 30 . 30 65 30 5 30 5 30 20 7 7 30 30 7 30 30 10 120 88 120 Shots Fired 1805 | . 102 192 183 179 101 178 126 2 . 7 65 22 27 25 39 30 45 36 42 39 22 14 34 50 48 96 49 52 Gun 697 | . 10 7 84 176 96 168 126 . . . 19 . . . . . . . . . . . . . . . 11 . Cannon 331 | . 75 173 75 . . . . . . . . . . . . . . . . . . . . . . 6 . 2 Launcher 57 | . 2 2 2 3 5 10 . 2 . 1 10 4 . 1 . 2 . . . 3 2 . 1 2 . 5 . . Special 720 | . 15 10 22 . . . . . . 6 36 18 27 24 39 28 45 36 42 36 20 14 33 48 48 85 38 50 Kinetic 904 | . 85 180 75 176 96 160 126 . . . 6 . . . . . . . . . . . . . . . . . Thermal 197 | . 15 10 106 . . 8 . . . . 13 . . . . . 7 . . . . . 13 . . 6 11 8 Explosive 57 | . 2 2 2 3 5 10 . 2 . 1 10 4 . 1 . 2 . . . 3 2 . 1 2 . 5 . . Electromagnetic . | . . . . . . . . . . . . . . . . . . . . . . . . . . . . . Robot Hit Streak 25 | . 10 9 17 20 21 15 22 . . 5 10 5 10 10 19 11 22 12 9 13 6 16 17 25 9 20 10 9 Robot Miss Streak 11 | . 4 11 6 2 5 4 1 . . 1 2 2 2 2 2 1 1 2 1 2 1 . 5 1 2 3 2 2 Penetration Max . | . . . . . . . . . . . . . . . . . . . . . . . . . . . . . Secondary Targets 11 | . . . . 2 4 3 2 . . . . . . . . . . . . . . . . . . . . . Max Gunslinging Chain 1 | . . . . 1 1 1 1 . . . . . . . . . . . . . . . . . . . . . Shots Hit Robots 1343 | . 62 128 111 125 66 122 105 10 . 13 36 17 22 23 29 32 35 35 30 37 13 18 27 50 41 73 31 52 Core Hits 535 | . 32 117 51 63 31 89 40 1 . 14 24 6 . 4 1 1 2 2 1 5 3 2 8 5 1 21 2 9 Critical Kills 8 | . . 2 4 . . 1 1 . . . . . . . . . . . . . . . . . . . . . Critical Parts Destroyed 8 | . . 3 5 . . . . . . . . . . . . . . . . . . . . . . . . . Critical Strikes 28 | . 3 5 14 . . 2 1 . . 1 . . . . . . . . . 1 . . . . . . . 1 Burn 6 | . . . 5 . . 1 . . . . . . . . . . . . . . . . . . . . . . Destroy 16 | . . 5 9 . . 1 1 . . . . . . . . . . . . . . . . . . . . . Blast 2 | . 2 . . . . . . . . . . . . . . . . . . . . . . . . . . . Sever 4 | . 1 . . . . . . . . 1 . . . . . . . . . 1 . . . . . . . 1 Melee Attacks 739 | . . . . . 11 7 . 20 6 27 31 13 24 10 35 54 51 16 64 33 58 17 50 41 62 29 36 44 Impact . | . . . . . . . . . . . . . . . . . . . . . . . . . . . . . Slashing 721 | . . . . . 1 . . 19 6 27 31 13 24 10 35 54 51 16 64 33 58 17 50 41 62 29 36 44 Piercing . | . . . . . . . . . . . . . . . . . . . . . . . . . . . . . Sneak Attacks 62 | . . . . . . 7 . 3 . 4 . 2 3 5 . 2 . 5 . 2 . 1 1 6 5 5 5 6 Combat Hostiles 10 | . . . . . . . . . . 1 . . 1 . . . . . . . . . . . 5 1 1 1 Follow-up Attacks . | . . . . . . . . . . . . . . . . . . . . . . . . . . . . . Damage Inflicted 25080 | . 1000 2839 2950 2444 1231 3416 1255 380 . 718 794 395 228 368 97 358 66 517 44 671 45 223 493 655 660 1704 403 1126 Guns 8046 | . 89 62 1310 2348 818 2066 1255 . . . 98 . . . . . . . . . . . . . . . . . Cannons 4483 | . 771 2419 1293 . . . . . . . . . . . . . . . . . . . . . . . . . Explosions 4930 | . . 153 193 72 413 1350 . . . 286 584 187 . 22 . . . . . 326 45 . 59 52 . 1188 . . Melee 6884 | . . . . . . . . 380 . 431 112 208 228 346 97 358 . 517 44 345 . 223 320 603 660 516 403 1093 Ramming 208 | . 8 127 48 24 . . . . . 1 . . . . . . . . . . . . . . . . . . Kinetic 11144 | . 860 2481 1293 2348 818 1991 1255 . . . 98 . . . . . . . . . . . . . . . . . Thermal 1914 | . 132 78 1416 . . 75 . . . . . . . . . . 66 . . . . . 114 . . . . 33 Explosive 4809 | . . 153 193 72 413 1350 . . . 165 584 187 . 22 . . . . . 326 45 . 59 52 . 1188 . . Electromagnetic 121 | . . . . . . . . . . 121 . . . . . . . . . . . . . . . . . . Impact . | . . . . . . . . . . . . . . . . . . . . . . . . . . . . . Slashing 6884 | . . . . . . . . 380 . 431 112 208 228 346 97 358 . 517 44 345 . 223 320 603 660 516 403 1093 Piercing . | . . . . . . . . . . . . . . . . . . . . . . . . . . . . . Highest Corruption 8 | . . . . 1 1 . . . . . . . 8 8 8 . . . . 1 1 . . 3 3 1 1 1 Average Corruption 3 | . . . . 1 1 . . . . . . . 7 8 8 . . . . 1 1 . . 2 2 1 1 1 Corruption Purged 6 | . . . . . . . . . . . . . . . . . . . . . 1 . . . 3 . 1 1 Corruption Blocked . | . . . . . . . . . . . . . . . . . . . . . . . . . . . . . Effects 209 | . . . . . 34 . . . . . . . 22 32 81 . . . . 2 1 . . 20 11 5 1 . Message Errors 52 | . . . . . 8 . . . . . . . 4 6 23 . . . . 1 . . . 3 2 4 1 . Matter Fused 53 | . . . . . 12 . . . . . . . 7 5 18 . . . . . . . . 6 5 . . . Heat Flow Errors 23 | . . . . . 3 . . . . . . . 4 3 7 . . . . . . . . 4 1 1 . . Energy Discharges 27 | . . . . . 5 . . . . . . . 3 5 10 . . . . 1 . . . 2 1 . . . Data Loss (minor) 33 | . . . . . 2 . . . . . . . 4 11 15 . . . . . . . . 1 . . . . Data Loss (major) 11 | . . . . . . . . . . . . . . 2 5 . . . . . . . . 2 2 . . . Misfires 3 | . . . . . 3 . . . . . . . . . . . . . . . . . . . . . . . Alerts 7 | . . . . . 1 . . . . . . . . . 3 . . . . . 1 . . 2 . . . . Overload Shots . | . . . . . . . . . . . . . . . . . . . . . . . . . . . . . Overflow Damage 1301 | . . 60 54 . 12 20 . 137 . 46 3 42 68 77 . 20 . 219 . 115 . . . 165 . 114 21 128 Projectiles 99 | . . 60 36 . . . . . . . . . . . . . . . . . . . . . . . . 3 Explosions 67 | . . . 18 . 12 20 . 7 . . . 5 . . . . . . . . . . . . . 5 . . Melee 1135 | . . . . . . . . 130 . 46 3 37 68 77 . 20 . 219 . 115 . . . 165 . 109 21 125 Knockbacks 59 | . 6 44 8 1 . . . . . . . . . . . . . . . . . . . . . . . . Impact 2 | . . 1 . 1 . . . . . . . . . . . . . . . . . . . . . . . . Kinetic 54 | . 6 40 8 . . . . . . . . . . . . . . . . . . . . . . . . . Secondary 3 | . . 3 . . . . . . . . . . . . . . . . . . . . . . . . . . Self-Inflicted Damage 150 | . . 27 . . . 18 . 59 . . 25 14 . . . . . . . . 7 . . . . . . . Shots 8 | . . 1 . . . 2 . 2 . . 1 1 . . . . . . . . 1 . . . . . . . Rammed 36 | . 4 19 7 5 . . . . . 1 . . . . . . . . . . . . . . . . . . Targets Rammed 40 | . 4 23 7 5 . . . . . 1 . . . . . . . . . . . . . . . . . . Kicked . | . . . . . . . . . . . . . . . . . . . . . . . . . . . . . Crushed 4 | . . 4 . . . . . . . . . . . . . . . . . . . . . . . . . . Highest Temperature 287 | . 102 206 287 58 238 155 47 . 4 . 104 . 200 250 245 . . . . . . . . 204 122 242 . 48 Average Temperature 50 | . 21 56 59 13 59 34 24 . 4 . 52 . 91 116 92 . . . . . . . . 94 71 84 . 30 Received Heat Transfer 2240 | . 111 78 178 195 279 528 135 27 108 . 57 30 108 . 24 . 55 . 9 28 48 . 30 51 42 31 52 36 Siege Activations . | . . . . . . . . . . . . . . . . . . . . . . . . . . . . . Robots Corrupted . | . . . . . . . . . . . . . . . . . . . . . . . . . . . . . Combat Hostiles . | . . . . . . . . . . . . . . . . . . . . . . . . . . . . . Parts Fried . | . . . . . . . . . . . . . . . . . . . . . . . . . . . . . Impact Corruptions . | . . . . . . . . . . . . . . . . . . . . . . . . . . . . . Robots Melted . | . . . . . . . . . . . . . . . . . . . . . . . . . . . . . Combat Hostiles . | . . . . . . . . . . . . . . . . . . . . . . . . . . . . . Parts Melted 1 | . 1 . . . . . . . . . . . . . . . . . . . . . . . . . . . Heat Transferred 4329 | . 444 259 2886 . . 222 . . . . . . . . . . 148 . . . . . 259 . . . . 111 Parts Sabotaged . | . . . . . . . . . . . . . . . . . . . . . . . . . . . . . Parts Stolen . | . . . . . . . . . . . . . . . . . . . . . . . . . . . . . Parts Stripped . | . . . . . . . . . . . . . . . . . . . . . . . . . . . . . Power Chain Reactions . | . . . . . . . . . . . . . . . . . . . . . . . . . . . . . Missiles Intercepted . | . . . . . . . . . . . . . . . . . . . . . . . . . . . . . Alert | -11 -10 -10 -9 -9 -9 -8 -8 -7 -7 -7 -7 -6 -6 -6 -6 -5 -5 -5 -5 -4 -4 -4 -4 -3 -3 -2 -2 -1 ------- Run | Scr Mat Min Mat Sto Gar Mat Gar Fac Gar Fac Gar Fac Gar Fac Gar Fac Gar Fac Gar Fac Gar Fac Gar Res Gar Res Gar Acc Peak Influence 1430 | . 194 255 404 462 1095 740 759 538 30 669 1430 916 1052 736 796 417 554 337 479 354 829 501 749 494 169 566 645 470 Initial 750 | . . 12 99 107 300 533 481 396 . 10 468 750 238 552 14 417 49 290 22 251 247 434 238 420 11 94 332 386 Average 421 | . 39 50 224 240 911 498 730 242 2 206 992 599 669 280 390 122 374 93 374 223 579 326 566 169 140 170 552 273 Maximum Alert Level 4 | . . 1 2 2 3 3 3 2 . 2 4 3 3 3 3 2 2 1 2 1 3 2 3 2 . 2 2 2 Low Security (%) 28 | 100 100 96 38 43 . . . 49 100 50 . 10 . 60 28 76 10 76 11 41 . 19 . 67 100 64 . 20 Level 1 18 | . . 3 59 39 2 8 . 27 . 33 . 9 1 8 19 15 29 23 29 58 8 50 20 20 . 28 4 77 Level 2 36 | . . . 2 17 9 89 6 22 . 16 43 27 85 6 34 7 60 . 58 . 56 29 46 12 . 7 95 2 Level 3 13 | . . . . . 87 2 93 . . . 8 52 13 24 16 . . . . . 34 . 32 . . . . . Level 4 2 | . . . . . . . . . . . 48 . . . . . . . . . . . . . . . . . Level 5 . | . . . . . . . . . . . . . . . . . . . . . . . . . . . . . High Security . | . . . . . . . . . . . . . . . . . . . . . . . . . . . . . Max Security . | . . . . . . . . . . . . . . . . . . . . . . . . . . . . . Squads Dispatched 120 | . 6 . 5 2 . 9 . 6 . 15 . 2 . 2 . 6 . 9 . 14 . 13 . 13 . 12 . 6 Investigation 37 | . 2 . 1 1 . . . 3 . 6 . 1 . 1 . 1 . 4 . 3 . 4 . 5 . 5 . . Extermination 34 | . . . . . . . . 1 . 4 . . . 1 . 2 . 2 . 5 . 3 . 8 . 3 . 5 Reinforcement 27 | . 4 . 4 1 . 3 . 2 . 2 . . . . . 3 . . . 2 . 3 . . . 2 . 1 Assault 3 | . . . . . . 1 . . . . . 1 . . . . . . . . . . . . . 1 . . Garrison 19 | . . . . . . 5 . . . 3 . . . . . . . 3 . 4 . 3 . . . 1 . . Intercept . | . . . . . . . . . . . . . . . . . . . . . . . . . . . . . Searches Triggered . | . . . . . . . . . . . . . . . . . . . . . . . . . . . . . Construction Impeded 2 | . . . . . . . . . . . . . . . . . . . . . . 2 . . . . . . Haulers Reinforced 3 | . . . . . . . . 1 . . . . . . . . . . . 2 . . . . . . . . Active Scanning Responses . | . . . . . . . . . . . . . . . . . . . . . . . . . . . . . Cargo Convoy Interrupts 2 | . . . . . . . . 1 . . . . . . . . . . . . . . . 1 . . . . Stealth | -11 -10 -10 -9 -9 -9 -8 -8 -7 -7 -7 -7 -6 -6 -6 -6 -5 -5 -5 -5 -4 -4 -4 -4 -3 -3 -2 -2 -1 --------- Run | Scr Mat Min Mat Sto Gar Mat Gar Fac Gar Fac Gar Fac Gar Fac Gar Fac Gar Fac Gar Fac Gar Fac Gar Res Gar Res Gar Acc Distress Signals 33 | . 1 . 2 3 . . . 4 . . . . . . . . 1 1 1 5 . 4 1 7 . 1 . 2 Communications Jammed 79 | . . . . . . . . . . . 12 1 . . . 4 . 4 . 31 2 . . 10 . 5 . 10 Distress Signals 73 | . . . . . . . . . . . 12 1 . . . 4 . 2 . 28 2 . . 10 . 4 . 10 Times Spotted 845 | . 33 7 56 29 27 39 15 16 11 30 31 19 26 4 30 15 37 22 26 60 19 23 26 52 26 69 20 77 Peak Tracking Total 13 | . 2 3 5 6 6 6 5 8 13 5 4 3 4 3 3 4 5 4 3 5 4 4 5 6 4 7 3 7 Tactical Retreats 69 | . . . . 1 . 2 . 3 . 6 1 . 6 . 8 . 5 . 2 2 2 3 3 6 . 1 . 18 Traps | -11 -10 -10 -9 -9 -9 -8 -8 -7 -7 -7 -7 -6 -6 -6 -6 -5 -5 -5 -5 -4 -4 -4 -4 -3 -3 -2 -2 -1 ------- Run | Scr Mat Min Mat Sto Gar Mat Gar Fac Gar Fac Gar Fac Gar Fac Gar Fac Gar Fac Gar Fac Gar Fac Gar Res Gar Res Gar Acc Traps Triggered 79 | . 1 . 1 . 1 . 1 . . 4 2 . 6 . 8 . 11 3 7 1 7 . 7 6 7 2 4 . Indirectly . | . . . . . . . . . . . . . . . . . . . . . . . . . . . . . Trap Hack Attempts 12 | . . 6 . . . . . . . . . . . . . . . . . . . . . . . . . 6 Triggered . | . . . . . . . . . . . . . . . . . . . . . . . . . . . . . Disarmed 1 | . . . . . . . . . . . . . . . . . . . . . . . . . . . . 1 Reprogrammed 22 | . . 3 . . . . . . . . . 4 . 3 . . . 4 . . . . . . . 6 . 2 Reused 6 | . . . . . . . . . . . . . . 1 . . . 3 . . . . . . . 2 . . Traps Extracted 3 | . . 3 . . . . . . . . . . . . . . . . . . . . . . . . . . Installed . | . . . . . . . . . . . . . . . . . . . . . . . . . . . . . Triggered 7 | . . . . . . . . . . . . . . 1 . . . 3 . . . . . 1 . 2 . . Most Traps Carried 3 | . . 3 3 3 . . . . . . . . . . . . . . . . . . . . . . . . Machines | -11 -10 -10 -9 -9 -9 -8 -8 -7 -7 -7 -7 -6 -6 -6 -6 -5 -5 -5 -5 -4 -4 -4 -4 -3 -3 -2 -2 -1 ---------- Run | Scr Mat Min Mat Sto Gar Mat Gar Fac Gar Fac Gar Fac Gar Fac Gar Fac Gar Fac Gar Fac Gar Fac Gar Res Gar Res Gar Acc Machines Disabled 79 | . 2 2 5 3 4 1 . 1 . 1 6 . 4 . 5 1 4 . 5 4 5 6 6 3 4 3 4 . Max in Single Turn 2 | . 1 1 1 1 1 1 . 1 . 1 2 . 1 . 1 1 1 . 1 1 1 . 1 1 1 1 1 . Garrison Access 1 | . . . . . . . . . . . . . . . . . . . . . . . . . . 1 . . Garrison Relay 41 | . . . . . 4 . . . . . 4 . 4 . 4 . 4 . 4 . 4 . 5 . 4 . 4 . Phase Generator 1 | . . . . . . . . . . . 1 . . . . . . . . . . . . . . . . . Machines Sabotaged . | . . . . . . . . . . . . . . . . . . . . . . . . . . . . . Garrisons Compromised . | . . . . . . . . . . . . . . . . . . . . . . . . . . . . . Overloaded Fab Kills . | . . . . . . . . . . . . . . . . . . . . . . . . . . . . . Hacking | -11 -10 -10 -9 -9 -9 -8 -8 -7 -7 -7 -7 -6 -6 -6 -6 -5 -5 -5 -5 -4 -4 -4 -4 -3 -3 -2 -2 -1 --------- Run | Scr Mat Min Mat Sto Gar Mat Gar Fac Gar Fac Gar Fac Gar Fac Gar Fac Gar Fac Gar Fac Gar Fac Gar Res Gar Res Gar Acc Machines Accessed 173 | . 6 2 10 15 . 3 . 11 . 17 . 9 . 7 . 13 . 15 . 10 . 16 . 14 . 17 . 8 Terminals 82 | . 3 1 6 10 . 1 . 5 . 6 . 5 . 4 . 7 . 6 . 4 . 7 . 7 . 7 . 3 Fabricators 23 | . . . . . . . . 3 . 4 . 1 . . . 1 . 3 . 3 . 2 . 2 . 3 . 1 Repair Stations 17 | . 1 . 1 2 . 1 . 1 . 2 . . . 1 . 1 . 2 . . . 2 . . . 2 . 1 Recycling Units 27 | . 2 . 2 2 . . . 1 . 2 . 2 . 1 . 2 . 2 . 2 . 2 . 3 . 3 . 1 Scanalyzers 4 | . . . 1 . . . . . . 1 . . . . . 1 . . . . . . . . . . . 1 Garrison Access 19 | . . . . 1 . 1 . 1 . 2 . 1 . 1 . 1 . 2 . 1 . 3 . 2 . 2 . 1 Total Hacks 739 | . 23 3 34 47 . 9 . 54 . 49 . 48 . 31 . 56 . 48 . 46 . 72 . 81 . 79 . 59 Successful 470 | . 15 2 26 26 . 7 . 48 . 34 . 37 . 12 . 37 . 30 . 24 . 47 . 46 . 52 . 27 Failed 268 | . 8 1 8 21 . 2 . 5 . 15 . 11 . 19 . 19 . 18 . 22 . 25 . 35 . 27 . 32 Catastrophic 37 | . . 1 . 1 . . . . . 4 . 3 . 2 . 2 . 3 . 6 . 2 . 5 . . . 8 Database Lockouts 1 | . . . . . . . . 1 . . . . . . . . . . . . . . . . . . . . Manual 505 | . 19 2 23 27 . 6 . 34 . 22 . 35 . 11 . 40 . 32 . 35 . 60 . 59 . 51 . 49 Terminals 380 | . 11 2 19 27 . 4 . 34 . 11 . 30 . 21 . 32 . 22 . 22 . 33 . 46 . 25 . 41 Fabricators 87 | . . . . . . . . 11 . 15 . 6 . . . 7 . 7 . 11 . 7 . 9 . 12 . 2 Repair Stations 60 | . 4 . 5 9 . 2 . 5 . 8 . . . 6 . 6 . 3 . . . 2 . . . 9 . 1 Recycling Units 115 | . 8 . 6 8 . . . 3 . 4 . 9 . 3 . 8 . 6 . 9 . 6 . 18 . 18 . 9 Scanalyzers 14 | . . . 4 . . . . . . 6 . . . . . 1 . . . . . . . . . . . 3 Garrison Access 82 | . . . . 3 . 3 . 1 . 5 . 3 . 1 . 2 . 10 . 4 . 24 . 8 . 15 . 3 Terminal Hacks 128 | . 4 2 9 9 . 1 . 20 . 1 . 14 . 3 . 11 . 9 . 3 . 11 . 8 . 12 . 11 Record 1 | . . . . . . . . 1 . . . . . . . . . . . . . . . . . . . . Part Schematic 3 | . . . . . . . . 1 . . . . . . . . . . . . . . . . . . . 2 Robot Schematic 15 | . 2 . 1 1 . 1 . 2 . . . 2 . . . 1 . . . 1 . 2 . . . 1 . 1 Robot Analysis 13 | . 2 1 2 2 . . . . . . . . . . . . . . . . . 1 . . . . . 5 Prototype ID Bank 2 | . . . 1 1 . . . . . . . . . . . . . . . . . . . . . . . . Open Door 5 | . . 1 . 4 . . . . . . . . . . . . . . . . . . . . . . . . Open DSF 2 | . . . . . . . . . . . . . . . . 1 . 1 . . . . . . . . . . Branch Access Points 1 | . . . 1 . . . . . . . . . . . . . . . . . . . . . . . . . Machine Index 4 | . . . . . . . . . . 1 . 1 . . . . . . . . . . . 1 . . . 1 Terminal Index 6 | . . . . . . . . 1 . . . . . . . 1 . 1 . 1 . 1 . . . 1 . . Fabricator Index 5 | . . . . . . . . 1 . . . . . . . 1 . 1 . . . 1 . . . 1 . . Repair Station Index 1 | . . . . . . . . . . . . . . . . . . 1 . . . . . . . . . . Garrison Index 2 | . . . . . . . . 1 . . . . . . . . . . . . . . . . . 1 . . Unreport Threat 19 | . . . 2 1 . . . 3 . . . 4 . 1 . 2 . . . . . 1 . 2 . 3 . . Locate Traps 7 | . . . . . . . . 1 . . . . . . . 1 . . . 1 . 1 . 1 . 1 . 1 Reprogram Traps 5 | . . . . . . . . . . . . 2 . 1 . . . 1 . . . . . . . 1 . . Recall Investigation 14 | . . . 1 . . . . 3 . . . 1 . . . 1 . 2 . . . 2 . 2 . 2 . . Recall Extermination 10 | . . . . . . . . 1 . . . . . 1 . 2 . 2 . . . 1 . 2 . 1 . . Recall Reinforcements 5 | . . . . . . . . 3 . . . . . . . 1 . . . . . 1 . . . . . . Recall Assault 2 | . . . . . . . . 1 . . . 1 . . . . . . . . . . . . . . . . Hauler Manifests 1 | . . . . . . . . . . . . . . . . . . . . . . . . . . . . 1 Zone Layout 5 | . . . 1 . . . . 1 . . . 3 . . . . . . . . . . . . . . . . Fabricator Hacks 44 | . . . . . . . . 6 . 8 . 2 . . . 2 . 4 . 6 . 4 . 4 . 6 . 2 Load Schematic 22 | . . . . . . . . 3 . 4 . 1 . . . 1 . 2 . 3 . 2 . 2 . 3 . 1 Build 22 | . . . . . . . . 3 . 4 . 1 . . . 1 . 2 . 3 . 2 . 2 . 3 . 1 Repair Station Hacks 39 | . 3 . 4 6 . 2 . 5 . 3 . . . 4 . 3 . 2 . . . 1 . . . 5 . 1 Scan Component 17 | . 1 . 2 4 . 1 . 2 . 1 . . . 2 . 1 . . . . . . . . . 3 . . Repair 14 | . 1 . 2 2 . 1 . 2 . 1 . . . 2 . 1 . . . . . . . . . 2 . . Refit 8 | . 1 . . . . . . 1 . 1 . . . . . 1 . 2 . . . 1 . . . . . 1 Recycling Unit Hacks 10 | . . . . 1 . . . . . . . 1 . . . . . . . 1 . . . 3 . 3 . 1 Retrieve Matter 2 | . . . . . . . . . . . . 1 . . . . . . . . . . . . . 1 . . Retrieve Components 8 | . . . . 1 . . . . . . . . . . . . . . . 1 . . . 3 . 2 . 1 Scanalyzer 12 | . . . 3 . . . . . . 6 . . . . . 1 . . . . . . . . . . . 2 Insert Component 7 | . . . 1 . . . . . . 3 . . . . . 1 . . . . . . . . . . . 2 Analyze 5 | . . . 2 . . . . . . 3 . . . . . . . . . . . . . . . . . . Garrison Access Hacks 22 | . . . . 1 . 1 . 1 . 3 . 1 . 1 . 1 . 2 . 1 . 4 . 2 . 3 . 1 Unlock Access 17 | . . . . 1 . 1 . 1 . 1 . 1 . 1 . 1 . 1 . 1 . 3 . 2 . 2 . 1 Coupler Status 5 | . . . . . . . . . . 2 . . . . . . . 1 . . . 1 . . . 1 . . Unauthorized Hacks 215 | . 8 . 10 9 . 3 . 16 . 13 . 19 . 4 . 19 . 13 . 13 . 27 . 29 . 23 . 9 Terminals 81 | . 2 . 6 4 . 1 . 8 . 2 . 8 . 2 . 11 . 7 . 4 . 8 . 9 . 5 . 4 Track 20 | . . . 1 . . . . 3 . 1 . 3 . . . 4 . 3 . 1 . 2 . 2 . . . . Assimilate 8 | . . . 1 . . . . 2 . . . 1 . . . 2 . 1 . . . . . 1 . . . . Botnet 40 | . 2 . 3 4 . 1 . 2 . 1 . 2 . 2 . 4 . 3 . 2 . 3 . 4 . 4 . 3 Disrupt 4 | . . . . . . . . . . . . 1 . . . . . . . . . 2 . 1 . . . . Operators 9 | . . . 1 . . . . 1 . . . 1 . . . 1 . . . 1 . 1 . 1 . 1 . 1 Fabricators 25 | . . . . . . . . 5 . 6 . 4 . . . 2 . . . 1 . 3 . 3 . 1 . . Report 4 | . . . . . . . . 1 . 1 . 1 . . . . . . . . . . . 1 . . . . Prioritize 7 | . . . . . . . . . . 2 . 1 . . . 1 . . . 1 . 1 . . . 1 . . Liberate 7 | . . . . . . . . 2 . 2 . 1 . . . . . . . . . 1 . 1 . . . . Haulers 7 | . . . . . . . . 2 . 1 . 1 . . . 1 . . . . . 1 . 1 . . . . Repair Stations 2 | . . . . . . . . . . . . . . . . . . . . . . 1 . . . 1 . . Mechanics 2 | . . . . . . . . . . . . . . . . . . . . . . 1 . . . 1 . . Recycling Units 67 | . 6 . 4 4 . . . 3 . 3 . 5 . 2 . 5 . 2 . 5 . 3 . 11 . 10 . 4 Monitor 5 | . . . . . . . . . . . . . . . . . . . . . . . . 2 . 2 . 1 Reject 23 | . 2 . 2 2 . . . 1 . 2 . 2 . 1 . 2 . . . 2 . . . 3 . 3 . 1 Recyclers 12 | . . . 1 . . . . 1 . . . 1 . . . 1 . . . 1 . 1 . 3 . 2 . 1 Mask 25 | . 2 . 1 2 . . . 1 . 1 . 2 . 1 . 2 . 2 . 2 . 2 . 3 . 3 . 1 Tunnel 2 | . 2 . . . . . . . . . . . . . . . . . . . . . . . . . . . Scanalyzers . | . . . . . . . . . . . . . . . . . . . . . . . . . . . . . Garrison Access 40 | . . . . 1 . 2 . . . 2 . 2 . . . 1 . 4 . 3 . 12 . 6 . 6 . 1 Broadcast 3 | . . . . . . . . . . . . . . . . . . . . 1 . 1 . . . 1 . . Restock 2 | . . . . 1 . 1 . . . . . . . . . . . . . . . . . . . . . . Decoy 1 | . . . . . . . . . . . . . . . . . . . . . . . . . . 1 . . Redirect 8 | . . . . . . . . . . 1 . . . . . . . . . . . 3 . 2 . 1 . 1 Reprogram 6 | . . . . . . . . . . . . . . . . . . 1 . . . 3 . 1 . 1 . . Intercept 11 | . . . . . . 1 . . . . . 1 . . . 1 . 2 . 1 . 3 . 1 . 1 . . Watchers 4 | . . . . . . . . . . . . 1 . . . . . . . 1 . 1 . . . 1 . . Eject 5 | . . . . . . . . . . 1 . . . . . . . 1 . . . 1 . 2 . . . . Data Cores Recovered . | . . . . . . . . . . . . . . . . . . . . . . . . . . . . . Used . | . . . . . . . . . . . . . . . . . . . . . . . . . . . . . Hacking Detections 132 | . 6 1 10 12 . 3 . 8 . 13 . 6 . 6 . 10 . 12 . 9 . 11 . 9 . 12 . 4 Full Trace Events 23 | . . . . 1 . . . 3 . 4 . 1 . . . 1 . 2 . 3 . 2 . 2 . 4 . . Feedback Events . | . . . . . . . . . . . . . . . . . . . . . . . . . . . . . Feedback Blocked . | . . . . . . . . . . . . . . . . . . . . . . . . . . . . . Robot Schematics Acquired 15 | . 2 . 1 1 . 1 . 2 . . . 2 . . . 1 . . . 1 . 2 . . . 1 . 1 Robots Built 41 | . . . . . . . . 9 . 12 . 2 . . . 1 . 2 . 4 . 3 . 2 . 4 . 2 Authchips 1 | . . . . . . . . . . . . . . . . . . . . . . . . . . . . 1 Time 1775 | . . . . . . . . 297 . 245 . 67 . . . 42 . 142 . 188 . 271 . 280 . 175 . 68 Total Robot Build Rating 190 | . . . . . . . . 18 . 48 . 8 . . . 6 . 9 . 22 . 19 . 14 . 30 . 16 Part Schematics Acquired 7 | . . . 1 . . . . 1 . 3 . . . . . . . . . . . . . . . . . 2 Parts Built . | . . . . . . . . . . . . . . . . . . . . . . . . . . . . . Authchips . | . . . . . . . . . . . . . . . . . . . . . . . . . . . . . Time . | . . . . . . . . . . . . . . . . . . . . . . . . . . . . . Total Part Build Rating . | . . . . . . . . . . . . . . . . . . . . . . . . . . . . . Parts Repaired 14 | . 1 . 2 2 . 1 . 2 . 1 . . . 2 . 1 . . . . . . . . . 2 . . Time 562 | . 26 . 52 196 . 60 . 89 . 19 . . . 57 . 25 . . . . . . . . . 38 . . Parts Recycled . | . . . . . . . . . . . . . . . . . . . . . . . . . . . . . Recycled Matter . | . . . . . . . . . . . . . . . . . . . . . . . . . . . . . Retrieved Matter 159 | . . . . . . . . . . . . . . . . . . . . . . . . . . 159 . . Retrieved Components 34 | . . . . 9 . . . . . . . . . . . . . . . 3 . . . 1 . 11 . 10 Parts Scanalyzed 4 | . . . 1 . . . . . . 3 . . . . . . . . . . . . . . . . . . Part Schematics Acquired 4 | . . . 1 . . . . . . 3 . . . . . . . . . . . . . . . . . . Parts Damaged 1 | . . . 1 . . . . . . . . . . . . . . . . . . . . . . . . . Bothacking | -11 -10 -10 -9 -9 -9 -8 -8 -7 -7 -7 -7 -6 -6 -6 -6 -5 -5 -5 -5 -4 -4 -4 -4 -3 -3 -2 -2 -1 ------------ Run | Scr Mat Min Mat Sto Gar Mat Gar Fac Gar Fac Gar Fac Gar Fac Gar Fac Gar Fac Gar Fac Gar Fac Gar Res Gar Res Gar Acc Used RIF Installer 12 | . . . . . 1 . 1 . 1 . 1 . 1 . 1 . 1 . 1 . 1 . 1 . 1 . 1 . Hotswap 1 | . . . . . . . . . . . . . 1 . . . . . . . . . . . . . . . Threat Obfuscator 3 | . . . . . . . . . . . . . . . 1 . 1 . 1 . . . . . . . . . Signal Jammer 1 | . . . . . . . . . . . 1 . . . . . . . . . . . . . . . . . Zone Cloak 2 | . . . . . . . . . . . . . . . . . . . . . 1 . . . 1 . . . Robot Detection 1 | . . . . . . . 1 . . . . . . . . . . . . . . . . . . . . . Watcher Feeds 1 | . . . . . . . . . 1 . . . . . . . . . . . . . . . . . . . Autooverride 2 | . . . . . . . . . . . . . . . . . . . . . . . 1 . . . 1 . Robots Hacked 330 | . . . . . 9 4 . 1 . 2 12 9 12 9 15 15 17 22 18 21 7 7 9 30 21 48 22 20 Non-combat 126 | . . . . . . 4 . 1 . 2 . 7 . 9 . 10 . 19 . 13 1 4 1 21 1 25 . 8 Combat 204 | . . . . . 9 . . . . . 12 2 12 . 15 5 17 3 18 8 6 3 8 9 20 23 22 12 Autooverrided 10 | . . . . . . . . . . . . . . . . . . . . . . . . . 3 3 3 1 Robot Hacks Applied 368 | . . . . . 9 4 . 1 . 2 13 10 12 12 18 16 18 26 18 22 7 9 10 37 19 61 21 23 parse_system 13 | . . . . . . . . . . . . 1 . . 3 1 . 1 . 1 . . 1 1 . 4 . . no_distress 8 | . . . . . . . . . . . . . . 2 . . . . . 1 . 2 . . . 2 . 1 find_chute 4 | . . . . . . . . . . . . 2 . . . . . . . 2 . . . . . . . . hold_bot 2 | . . . . . . . . . . . . . . . . . . . . . . . . 2 . . . . ignore_repairs 45 | . . . . . . . . . . . . 1 . 1 . 4 . 12 . 4 . . . 2 . 19 . 2 randomize_corridors 1 | . . . . . . . . . . . . . . . . . . . . . . . . . . 1 . . find_fabricator 4 | . . . . . . . . . . . . . . 1 . . . 1 . 2 . . . . . . . . find_dsf 1 | . . . . . . . . . . . . . . . . . . . . . . . . . . 1 . . drop_inventory 6 | . . . . . . . . . . . . . . . . . . 1 . 2 . . . 1 . 1 . 1 find_recycling 4 | . . . . . . . . . . . . . . . . . . 1 . . . 1 . 1 . 1 . . ignore_parts 24 | . . . . . . . . . . . . . . . . . . 2 . 1 . 1 . 12 . 8 . . purge_threat 12 | . . . . . . 1 . . . . . . . 2 . 1 . 1 . . . . . 3 . . . 4 reprogram_traps 1 | . . . . . . . . . . . . . . . . . . . . . . . . 1 . . . . block_reporting 2 | . . . . . . . . . . . . . . 1 . . . . . . . . . 1 . . . . map_route 1 | . . . . . . . . . . . . . . . . . . . . 1 . . . . . . . . focus_fire 7 | . . . . . . . . . . . . . 1 . . . . . . 1 . . . . 2 1 1 1 scatter_targeting 6 | . . . . . . . . . . . . . 1 . . . . . . . . . . 1 . 1 3 . broadcast_data 1 | . . . . . . . . . . . . . . . 1 . . . . . . . . . . . . . disrupt_area 2 | . . . . . . . . . . . . . . . . . . . . . . . . 1 . . 1 . spike_heat 1 | . . . . . . . . . . . . . . . 1 . . . . . . . . . . . . . overload_power 3 | . . . . . . . . . . . 1 . . . . . 1 . . . . . . . . . . 1 amplify_resonance 20 | . . . . . . . . . . . . . . . . . . . 2 1 . . . 1 1 5 6 4 disable_weapons 3 | . . . . . 2 . . . . . . . . . . . . . . . . . . . . 1 . . reboot_system 6 | . . . . . . . . . . . . . . . . . . . . . . . . 1 1 2 2 . overwrite_iff 14 | . . . . . . . . . . . 1 . 1 . . . 1 2 1 1 . . 1 3 2 . 1 . streamctrl_low 2 | . . . . . . . . . . . . . . 1 . . . . . . . . . 1 . . . . streamctrl_high 3 | . . . . . . . . . . . . . . . . . . . . . . . 1 1 . 1 . . formatsys_low 31 | . . . . . . 3 . 1 . 2 . 4 . 4 . 5 . 4 . . . 2 . 3 . 1 . 2 formatsys_high 141 | . . . . . 7 . . . . . 11 2 9 . 13 5 16 1 15 5 7 3 7 1 13 12 7 7 Relay Couplers Released 208 | . . . . 3 17 4 . . . 3 16 . 16 . 19 . 17 4 16 3 14 4 22 15 15 4 16 . Ejected 18 | . . . . . . . . . . 3 . . . . . . . 4 . . . 4 . 7 . . . . Machine Destruction 172 | . . . . . 17 . . . . . 16 . 16 . 19 . 17 . 16 . 14 . 22 . 15 4 16 . Programmers 18 | . . . . 3 . 4 . . . . . . . . . . . . . 3 . . . 8 . . . . Attached 45 | . . . . . 5 2 . 1 . 1 6 2 4 1 2 2 2 . . 1 2 2 1 3 1 2 2 3 Fabnet Peak Effective % . | . . . . . . . . . . . . . . . . . . . . . . . . . . . . . Robots Rewired 2 | . . . . . . . . . . . . 1 . . . . . . . 1 . . . . . . . . Allies Hacked 6 | . . . . . . . . . . 1 . . . . . . . . . 1 . 1 . . . 2 . 1 Hacks Repelled 10 | . . . . . . . . . . . . 1 . . . . . . . 3 . . . 3 . . . 3 Allies | -11 -10 -10 -9 -9 -9 -8 -8 -7 -7 -7 -7 -6 -6 -6 -6 -5 -5 -5 -5 -4 -4 -4 -4 -3 -3 -2 -2 -1 -------- Run | Scr Mat Min Mat Sto Gar Mat Gar Fac Gar Fac Gar Fac Gar Fac Gar Fac Gar Fac Gar Fac Gar Fac Gar Res Gar Res Gar Acc Total Allies 281 | . . . . 10 7 3 . 18 . 19 12 10 10 5 13 13 17 12 16 11 7 13 9 12 17 23 11 13 Largest Group 62 | . . . . 10 7 9 9 10 7 11 12 19 22 23 33 46 55 62 50 52 47 52 39 41 42 52 38 41 Highest-Rated Group 2961 | . . . . 88 73 84 84 147 99 260 257 429 560 590 926 1462 1685 1930 1671 1890 1916 2123 1849 1930 2157 2961 2541 2688 Highest-Rated Ally 178 | . . . . 16 18 15 15 26 26 30 32 37 47 47 47 137 137 137 137 137 137 137 137 137 137 178 178 178 Total Orders 4547 | . . . . 7 6 14 3 29 31 49 204 66 136 79 157 171 468 155 394 122 324 129 431 280 279 466 273 274 STAY 2412 | . . . . 1 5 13 2 18 24 41 138 54 85 31 75 72 242 72 223 64 167 58 242 152 143 199 150 141 ROAM 4 | . . . . . . . . . . . . . . . . 1 . 1 . . . . . 1 . 1 . . FOLLOW 1476 | . . . . 2 1 1 1 3 7 3 40 10 30 25 50 72 194 72 129 32 107 64 132 85 78 198 76 64 GUARD 9 | . . . . . . . . . . . . . . . . . . . . . . . . . . 4 . 5 AID 170 | . . . . . . . . 1 . 4 15 . . 9 6 2 . 1 14 9 16 4 12 13 13 25 11 15 DROP 141 | . . . . . . . . 1 . 1 3 1 4 4 6 8 14 3 9 4 13 1 14 3 15 12 14 11 PICKUP 1 | . . . . . . . . 1 . . . . . . . . . . . . . . . . . . . . COLLECT 330 | . . . . . . . . 5 . . 8 1 17 10 20 16 18 6 19 13 21 2 31 26 30 27 22 38 EXPLORE 3 | . . . . 3 . . . . . . . . . . . . . . . . . . . . . . . . RETURN 1 | . . . . 1 . . . . . . . . . . . . . . . . . . . . . . . . Ally Attacks 1835 | . . . . 1 5 10 47 39 7 73 92 60 40 20 92 30 52 71 51 201 68 86 112 158 35 216 64 205 Total Damage 58448 | . . . . 15 73 93 676 793 151 1968 1531 1288 791 303 2360 770 1214 1238 1849 6458 2436 3994 3406 7035 1570 9242 2215 6979 Kills 391 | . . . . . 2 3 7 9 . 20 16 13 13 4 17 9 12 6 13 39 18 27 22 41 6 47 12 35 Allies Corrupted 14 | . . . . . . . . . . 1 1 . . . . . . . . 4 . . . 2 . 3 . 3 Allies Melted 2 | . . . . . . . . . . . . . . . . . . 1 . . . . . 1 . . . . Intel | -11 -10 -10 -9 -9 -9 -8 -8 -7 -7 -7 -7 -6 -6 -6 -6 -5 -5 -5 -5 -4 -4 -4 -4 -3 -3 -2 -2 -1 ------- Run | Scr Mat Min Mat Sto Gar Mat Gar Fac Gar Fac Gar Fac Gar Fac Gar Fac Gar Fac Gar Fac Gar Fac Gar Res Gar Res Gar Acc Robot Analysis Total 13 | . 2 1 2 2 . . . . . . . . . . . . . . . . . 1 . . . . . 5 Derelict Logs Recovered 2 | . . 2 . . . . . . . . . . . . . . . . . . . . . . . . . . Drone Launches 2 | . . . . 2 . . . . . . . . . . . . . . . . . . . . . . . . Drone Recoveries 1 | . . . . 1 . . . . . . . . . . . . . . . . . . . . . . . . Exploration | -11 -10 -10 -9 -9 -9 -8 -8 -7 -7 -7 -7 -6 -6 -6 -6 -5 -5 -5 -5 -4 -4 -4 -4 -3 -3 -2 -2 -1 ------------- Run | Scr Mat Min Mat Sto Gar Mat Gar Fac Gar Fac Gar Fac Gar Fac Gar Fac Gar Fac Gar Fac Gar Fac Gar Res Gar Res Gar Acc Turns Passed 115739 | 3 5636 5722 4558 5157 5145 3075 2429 814 288 2658 6488 813 7895 1024 2760 1520 8996 1502 6904 2021 8346 1708 9377 3289 4567 2713 6415 3916 Spaces Moved 117460 | 1 1710 1558 1072 1226 2466 862 597 1356 366 3686 6120 1630 3306 1949 4006 2872 9892 3368 6918 4435 8324 4168 8850 6712 6423 6459 8390 8738 Core 314 | . . . . . . 19 1 7 . 4 . . . . . . 27 24 . . 123 . . 11 . . . 98 Treads 9350 | 1 1710 1558 1072 1226 2466 783 534 . . . . . . . . . . . . . . . . . . . . . Legs . | . . . . . . . . . . . . . . . . . . . . . . . . . . . . . Wheels 122 | . . . . . . 60 62 . . . . . . . . . . . . . . . . . . . . . Hover . | . . . . . . . . . . . . . . . . . . . . . . . . . . . . . Flight 107674 | . . . . . . . . 1349 366 3682 6120 1630 3306 1949 4006 2872 9865 3344 6918 4435 8201 4168 8850 6701 6423 6459 8390 8640 Fastest Speed 21 | 160 160 320 320 320 160 50 140 37 37 37 34 34 32 34 34 29 25 32 25 29 25 25 21 32 32 22 27 22 Average Speed 50 | 160 230 320 320 320 193 301 371 37 37 37 36 34 33 34 34 32 32 32 29 29 29 28 31 33 32 28 28 28 Slowest Speed 1550 | 160 320 320 480 320 320 320 1550 200 37 150 110 34 35 34 34 35 200 150 115 29 100 29 104 150 104 81 79 150 Overloaded Moves 157 | . . . . . . . . . . . . . . . . . 6 . 5 . 22 43 15 . . 19 . 47 Propulsion Burnouts . | . . . . . . . . . . . . . . . . . . . . . . . . . . . . . Robots Hopped 384 | . . . . . . . . 3 2 25 . 19 . 7 . 22 1 19 . 33 . 30 . 63 21 91 . 48 Cave-ins Triggered . | . . . . . . . . . . . . . . . . . . . . . . . . . . . . . Exploration Rate (%) 58 | 2 98 99 57 93 73 33 53 25 40 41 95 22 86 15 86 26 81 30 87 32 93 33 86 42 80 57 92 44 Regions Visited 28 Branch Regions 2 Pre-discovered Areas 4 | . 2 2 . . . . . . . . . . . . . . . . . . . . . . . . . . Known Exits Taken 13 | . . . 1 1 . 1 . 1 . 1 . 1 . 1 . 1 . 1 . 1 . 1 . 1 . 1 . . Unknown Exits Taken 3 | 1 1 1 . . . . . . . . . . . . . . . . . . . . . . . . . . Scrap Searched 1 | . . 1 . . . . . . . . . . . . . . . . . . . . . . . . . . Spaces Dug 493 | . 6 . 16 10 . 24 . 20 1 17 4 19 4 19 5 32 32 10 28 29 39 13 25 32 30 39 21 18 Terrain Destroyed 863 | . 11 43 32 25 9 75 . 20 1 23 149 33 4 19 5 32 32 10 28 31 45 13 29 40 30 84 21 19 Melee 349 | . . . . . . . . 4 1 17 4 9 4 5 5 18 32 10 28 18 33 13 25 32 30 23 21 17 Projectile 60 | . . 35 17 . . . . . . . . . . . . . . . . . . . . . . 6 . 2 AOE 454 | . 11 8 15 25 9 75 . 16 . 6 145 24 . 14 . 14 . . . 13 12 . 4 8 . 55 . . Terrain Rammed . | . . . . . . . . . . . . . . . . . . . . . . . . . . . . . Walls Destroyed . | . . . . . . . . . . . . . . . . . . . . . . . . . . . . . Machines Disabled . | . . . . . . . . . . . . . . . . . . . . . . . . . . . . . Actions | -11 -10 -10 -9 -9 -9 -8 -8 -7 -7 -7 -7 -6 -6 -6 -6 -5 -5 -5 -5 -4 -4 -4 -4 -3 -3 -2 -2 -1 --------- Run | Scr Mat Min Mat Sto Gar Mat Gar Fac Gar Fac Gar Fac Gar Fac Gar Fac Gar Fac Gar Fac Gar Fac Gar Res Gar Res Gar Acc Total 170907 | 2 3288 2040 1983 2344 2793 1214 724 1628 505 4900 10330 1833 10066 2278 5346 3348 15670 3712 11694 5070 14167 4603 15334 7649 8803 7139 12390 10054 Wait 47753 | . 1445 319 707 981 91 144 26 204 135 1140 3853 166 6549 266 1051 355 5076 255 4445 557 5465 410 6068 743 2048 546 3589 1119 Move 116726 | . 1709 1557 1071 1225 2465 861 596 1350 360 3636 6119 1594 3305 1936 4004 2829 9889 3332 6917 4375 8323 4109 8849 6599 6393 6291 8389 8643 Hop 323 | . . . . . . . . 3 2 25 . 16 . 6 . 20 1 16 . 26 . 28 . 49 8 76 . 47 Pick Up 1012 | . 21 9 21 5 67 31 5 6 . 2 82 4 26 12 36 15 190 11 28 9 70 5 86 47 58 16 110 40 Fast Attach 207 | . 7 . 11 6 7 20 10 4 . 8 12 2 10 2 1 8 9 3 10 1 7 1 12 8 9 8 12 19 Attach 137 | . 1 . 2 3 6 14 2 12 . 2 16 2 5 4 1 5 2 1 8 6 5 1 3 10 4 11 2 9 Detach 75 | . 3 . 1 . . 5 . . . 3 15 1 1 2 1 2 2 1 7 4 3 . 3 8 3 9 . 1 Swap 374 | 2 19 15 29 12 14 17 4 6 2 9 13 10 3 4 2 16 12 8 15 16 15 14 15 25 4 30 20 23 Drop 1055 | . 16 6 31 16 73 18 9 20 . 4 88 3 31 11 31 14 194 15 31 4 72 3 93 43 57 9 113 50 Fire 1317 | . 63 105 103 91 52 96 63 2 . 7 65 22 27 25 39 30 45 36 42 39 22 14 34 50 48 96 49 52 Melee 739 | . . . . . 11 7 . 20 6 27 31 13 24 10 35 54 51 16 64 33 58 17 50 41 62 29 36 44 Ram 1 | . . . . . . . . . . 1 . . . . . . . . . . . . . . . . . . Kick . | . . . . . . . . . . . . . . . . . . . . . . . . . . . . . Crush 39 | . 4 23 7 5 . . . . . . . . . . . . . . . . . . . . . . . . Escape Stasis 1122 | . . . . . 2 . 8 . . 36 36 . 85 . 144 . 198 18 126 . 126 . 121 26 108 18 70 . Rewire 15 | . . . . . 5 1 1 1 . . . . . . 1 . 1 . 1 . 1 1 . . 1 . . 1 Trap 12 | . . 6 . . . . . . . . . . . . . . . . . . . . . . . . . 6 Miscellaneous . | . . . . . . . . . . . . . . . . . . . . . . . . . . . . . Route ------- -11/Scrapyard -10/Materials (discovered 4 exits: *Mat x3 / *Min) -10/Mines (discovered 3 exits: *Mat x2 / [*Exi]) -9/Materials (discovered 3 exits: *Mat / Min / *Sto) -9/Storage (discovered 2 exits: *Mat / Gar) -9/Garrison (discovered 3 exits: *Mat x3) -8/Materials -8/Garrison -7/Factory -7/Garrison -7/Factory (discovered 4 exits: *Fac x2 / [*Low] / Gar) -7/Garrison (discovered 3 exits: *Fac x3) -6/Factory -6/Garrison (discovered 3 exits: *Fac x3) -6/Factory -6/Garrison (discovered 3 exits: *Fac x3) -5/Factory (discovered 4 exits: *Fac / *Upp x2 / Gar) -5/Garrison (discovered 3 exits: *Fac x3) -5/Factory (discovered 2 exits: *Upp / Gar) -5/Garrison (discovered 3 exits: *Fac x3) -4/Factory (discovered 2 exits: *Res / Gar) -4/Garrison (discovered 3 exits: *Fac x3) -4/Factory (discovered 3 exits: Gar / Gar / Gar) -4/Garrison (discovered 3 exits: *Res x3) -3/Research (discovered 3 exits: *Res / Gar / Gar) -3/Garrison (discovered 3 exits: *Res x3) -2/Research (discovered 2 exits: *Acc / Gar) -2/Garrison (discovered 3 exits: *Acc x3) -1/Access (discovered 1 exit: Gar) History --------- Turn | Location | Event 4 | -11/Scrapyard | Discovered new exit (range 0) 4 | -11/Scrapyard | Entered Materials 303 | -10/Materials | Build established: Mutant 448 | -10/Materials | Discovered new exit (range 16) 812 | -10/Materials | Discovered new exit (range 16) 1301 | -10/Materials | Discovered new exit (range 7) 2990 | -10/Materials | Discovered new exit (range 16) 3451 | -10/Materials | Repaired Lgt. Treads 5640 | -10/Materials | Entered Mines 5651 | -10/Mines | Met a Derelict who couldn't figure out how to use a Trap Extractor 6417 | -10/Mines | Discovered new exit (range 16) 6764 | -10/Mines | Learned 2 Materials zone layouts 7030 | -10/Mines | Discovered new exit (range 5) 7196 | -10/Mines | Deemed a non-threat by the Exiles lab entrance 7608 | -10/Mines | Found a damaged Exp. Sensor Array with a note attached 7615 | -10/Mines | Found Prototype Device 7836 | -10/Mines | YI-UF0 nonchalantly dropped a Grenade Launcher on the ground 7899 | -10/Mines | Destroyed YI-UF0 7915 | -10/Mines | Found Prototype Storage 7916 | -10/Mines | Identified YI-UF0's Bottomless Matter Pit 7922 | -10/Mines | Found Prototype Launcher 7923 | -10/Mines | Identified YI-UF0's Doublenader 8244 | -10/Mines | Received a Rocket Launcher from a helpful Derelict 8478 | -10/Mines | A weapon hastily lodged in a ceiling crevice suddenly fell to the ground 8554 | -10/Mines | Learned location of Recycling (-9) 8827 | -10/Mines | Learned location of Storage (-9) 10607 | -10/Mines | Discovered new exit (range 5) 11362 | -10/Mines | Entered Materials 11362 | -9/Materials | Evolved 2 slots: Utility x2 11363 | -9/Materials | Identified exit to Materials 12885 | -9/Materials | Identified exit to Mines 12885 | -9/Materials | Identified exit to Storage 14697 | -9/Materials | Repaired Lgt. Treads 14725 | -9/Materials | Repaired Lgt. Treads 15467 | -9/Materials | Identified Exp. Sensor Array 15920 | -9/Materials | Entered Storage 18491 | -9/Storage | Discovered exit to Materials (range 14) 20061 | -9/Storage | Repaired Broken Exp. Sensor Array 20122 | -9/Storage | Repaired Enh. Autogun 20238 | -9/Storage | Assisted by bots powering up and referring to "LRC-V3" 20542 | -9/Storage | Build established: Commander-Mutant 20993 | -9/Storage | Identified exit to Garrison 21077 | -9/Storage | Entered Garrison 21180 | -9/Garrison | Triggered checkpoint 21228 | -9/Garrison | Destroyed 11 combat bots 21240 | -9/Garrison | Triggered checkpoint 21256 | -9/Garrison | Triggered checkpoint 21301 | -9/Garrison | Build established: Mutant 21401 | -9/Garrison | Discovered exit to Materials (range 15) 21551 | -9/Garrison | Discovered exit to Materials (range 12) 21578 | -9/Garrison | Installed Relay Interface Framework 21695 | -9/Garrison | Triggered checkpoint 21735 | -9/Garrison | Garrison Relay disabled 21986 | -9/Garrison | Triggered checkpoint 21987 | -9/Garrison | Core integrity fell below 50% 22008 | -9/Garrison | Discovered exit to Materials (range 15) 22356 | -9/Garrison | Triggered checkpoint 22626 | -9/Garrison | Garrison Relay disabled 22786 | -9/Garrison | Triggered checkpoint 23237 | -9/Garrison | Garrison Relay disabled 23262 | -9/Garrison | Triggered checkpoint 23321 | -9/Garrison | Build established: Bothacker-Mutant 23739 | -9/Garrison | Build established: Commander-Mutant 24167 | -9/Garrison | Build established: Bothacker-Mutant 24884 | -9/Garrison | Triggered checkpoint 25041 | -9/Garrison | Build established: Commander-Mutant 25461 | -9/Garrison | Garrison Relay disabled 26222 | -9/Garrison | Entered Materials 26222 | -8/Materials | Accompanied by 7 allies 26222 | -8/Materials | Evolved 2 slots: Utility x2 27067 | -8/Materials | Repaired Enh. Autogun 27757 | -8/Materials | Identified exit to Garrison 27766 | -8/Materials | Garrison activated, responded to threat 28515 | -8/Materials | Lost 7 parts (1p2n4u) 29022 | -8/Materials | First assault squad dispatched 29126 | -8/Materials | Garrison activated, responded to threat 29142 | -8/Materials | Core integrity fell below 50% 29160 | -8/Materials | Core integrity fell below 20% 29188 | -8/Materials | Lost 10 parts (1p3n3u3w) 29297 | -8/Materials | Entered Garrison 29297 | -8/Garrison | Accompanied by 9 allies 29372 | -8/Garrison | Triggered checkpoint 29376 | -8/Garrison | Triggered checkpoint 29436 | -8/Garrison | Triggered checkpoint 29436 | -8/Garrison | Triggered checkpoint 29746 | -8/Garrison | Build established: Bothacker-Mutant 30240 | -8/Garrison | Discovered new exit (range 15) 30350 | -8/Garrison | Expanded RIF knowledge: Robot Detection 31726 | -8/Garrison | Entered Factory 31726 | -7/Factory | Accompanied by 2 allies 31726 | -7/Factory | Evolved 2 slots: Utility x2 31999 | -7/Factory | Fabricated L-31 Rogue? 32036 | -7/Factory | Fabricated L-31 Rogue? 32097 | -7/Factory | Build established: Wizard-Mutant 32148 | -7/Factory | Fabricated L-31 Rogue (x3) 32258 | -7/Factory | Central database locked down 32315 | -7/Factory | Repaired Imp. Flight Unit? 32357 | -7/Factory | Repaired Katana? 32519 | -7/Factory | Cargo convoy interrupted 32527 | -7/Factory | Identified exit to Garrison 32540 | -7/Factory | Entered Garrison 32540 | -7/Garrison | Accompanied by 7 allies 32808 | -7/Garrison | Triggered checkpoint 32819 | -7/Garrison | Discovered new exit (range 12) 32824 | -7/Garrison | Identified exit to Factory 32826 | -7/Garrison | Expanded RIF knowledge: Watcher Feeds 32828 | -7/Garrison | Entered Factory 32944 | -7/Factory | Discovered new exit (range 10) 33111 | -7/Factory | Build established: Hacker-Mutant 33314 | -7/Factory | Fabricated L-41 Fighter? 33425 | -7/Factory | Fabricated L-41 Fighter? 33977 | -7/Factory | Discovered new exit (range 13) 34339 | -7/Factory | Fabricated L-41 Fighter (x3) 34677 | -7/Factory | P-60 Hacker assimilated allied Fighter 4g 34801 | -7/Factory | Discovered new exit (range 10) 35013 | -7/Factory | Fabricated L-41 Fighter (x3) 35084 | -7/Factory | Garrison activated, responded to threat 35315 | -7/Factory | Repaired Imp. Utility Shielding 35486 | -7/Factory | Identified exit to Garrison 35486 | -7/Factory | Entered Garrison 35486 | -7/Garrison | Accompanied by 7 allies 35534 | -7/Garrison | Core integrity fell below 50% 35596 | -7/Garrison | Triggered checkpoint 35691 | -7/Garrison | Garrison Relay disabled 35784 | -7/Garrison | Triggered checkpoint 37504 | -7/Garrison | Discovered new exit (range 8) 37507 | -7/Garrison | Identified exit to Factory 37510 | -7/Garrison | Expanded RIF knowledge: Signal Jamming 37536 | -7/Garrison | Triggered checkpoint 37714 | -7/Garrison | Triggered checkpoint 37742 | -7/Garrison | Build established: Commander-Mutant 38534 | -7/Garrison | Discovered exit to Factory (range 11) 38563 | -7/Garrison | Discovered exit to Factory (range 14) 38626 | -7/Garrison | Triggered checkpoint 38694 | -7/Garrison | Garrison Relay disabled 38770 | -7/Garrison | Triggered checkpoint 38854 | -7/Garrison | Garrison Relay disabled 39104 | -7/Garrison | Triggered checkpoint 39269 | -7/Garrison | Garrison Relay disabled 39800 | -7/Garrison | Phase Generator disabled 40013 | -7/Garrison | Triggered checkpoint 41974 | -7/Garrison | Entered Factory 41974 | -6/Factory | Accompanied by 12 allies 41974 | -6/Factory | Evolved 2 slots: Utility x2 42324 | -6/Factory | First assault squad dispatched 42453 | -6/Factory | Fabricated P-60 Hacker (x2) 42738 | -6/Factory | Identified exit to Garrison 42787 | -6/Factory | Entered Garrison 42787 | -6/Garrison | Accompanied by 15 allies 42868 | -6/Garrison | Garrison Relay disabled 42915 | -6/Garrison | Triggered checkpoint 43066 | -6/Garrison | Triggered checkpoint 43131 | -6/Garrison | Discovered new exit (range 13) 43280 | -6/Garrison | Triggered checkpoint 43282 | -6/Garrison | Garrison Relay disabled 43306 | -6/Garrison | Triggered checkpoint 43398 | -6/Garrison | Discovered new exit (range 11) 43414 | -6/Garrison | Triggered checkpoint 43762 | -6/Garrison | Build established: Commander-Sprinter 49896 | -6/Garrison | Garrison Relay disabled 49928 | -6/Garrison | Triggered checkpoint 50138 | -6/Garrison | Garrison Relay disabled 50165 | -6/Garrison | Discovered new exit (range 15) 50173 | -6/Garrison | Identified exit to Factory 50175 | -6/Garrison | Expanded RIF knowledge: Hotswap 50488 | -6/Garrison | Triggered checkpoint 50515 | -6/Garrison | Build established: Commander-Mutant 50682 | -6/Garrison | Entered Factory 50682 | -6/Factory | Accompanied by 20 allies 50736 | -6/Factory | Repaired Remote Datajack? 50781 | -6/Factory | Repaired Imp. Cesium-ion Thruster? 51693 | -6/Factory | Identified exit to Garrison 51706 | -6/Factory | Entered Garrison 51706 | -6/Garrison | Accompanied by 23 allies 51980 | -6/Garrison | Triggered checkpoint 52178 | -6/Garrison | Garrison Relay disabled 52349 | -6/Garrison | Discovered new exit (range 10) 52352 | -6/Garrison | Identified exit to Factory 52355 | -6/Garrison | Expanded RIF knowledge: Threat Obfuscation 52392 | -6/Garrison | Triggered checkpoint 52687 | -6/Garrison | Garrison Relay disabled 52860 | -6/Garrison | Triggered checkpoint 53165 | -6/Garrison | Triggered checkpoint 53266 | -6/Garrison | Discovered exit to Factory (range 15) 53507 | -6/Garrison | Triggered checkpoint 53534 | -6/Garrison | Discovered exit to Factory (range 10) 53541 | -6/Garrison | Triggered checkpoint 53632 | -6/Garrison | Triggered checkpoint 53635 | -6/Garrison | Garrison Relay disabled 53840 | -6/Garrison | Triggered checkpoint 54107 | -6/Garrison | Garrison Relay disabled 54466 | -6/Garrison | Entered Factory 54466 | -5/Factory | Accompanied by 33 allies 54466 | -5/Factory | Evolved 2 slots: Utility x2 54736 | -5/Factory | Fabricated I-47 Archangel? 55332 | -5/Factory | Discovered new exit (range 26) 55347 | -5/Factory | Repaired Imp. Flight Unit? 55367 | -5/Factory | Discovered new exit (range 8) 55406 | -5/Factory | Discovered new exit (range 6) 55450 | -5/Factory | Lost 3 parts (1p1n1u) 55692 | -5/Factory | Build established: Commander-Sprinter 55889 | -5/Factory | Identified exit to Garrison 55986 | -5/Factory | Entered Garrison 55986 | -5/Garrison | Accompanied by 43 allies 55986 | -5/Garrison | 2 allies did not survive the journey 55989 | -5/Garrison | Expanded RIF knowledge: Threat Obfuscation 56054 | -5/Garrison | Triggered checkpoint 56086 | -5/Garrison | Garrison Relay disabled 56281 | -5/Garrison | Spotted B-75 Beast 56542 | -5/Garrison | Triggered checkpoint 56890 | -5/Garrison | Allies destroyed B-75 Beast 57034 | -5/Garrison | Discovered new exit (range 10) 57051 | -5/Garrison | Triggered checkpoint 57099 | -5/Garrison | Discovered new exit (range 14) 57331 | -5/Garrison | Garrison Relay disabled 57345 | -5/Garrison | Triggered checkpoint 57484 | -5/Garrison | Triggered checkpoint 57768 | -5/Garrison | Discovered new exit (range 10) 57786 | -5/Garrison | Garrison Relay disabled 58054 | -5/Garrison | Triggered checkpoint 59525 | -5/Garrison | Garrison Relay disabled 60684 | -5/Garrison | Identified exit to Factory 60873 | -5/Garrison | Triggered checkpoint 64982 | -5/Garrison | Entered Factory 64982 | -5/Factory | Accompanied by 54 allies 65023 | -5/Factory | Discovered new exit (range 6) 65025 | -5/Factory | Identified exit to Upper Caves 65376 | -5/Factory | Fabricated I-47 Archangel (x1) 65694 | -5/Factory | Fabricated M-28 Smith? 65964 | -5/Factory | Identified exit to Garrison 66208 | -5/Factory | Garrison activated, responded to threat 66484 | -5/Factory | Entered Garrison 66484 | -5/Garrison | Accompanied by 38 allies 66486 | -5/Garrison | Triggered checkpoint 66566 | -5/Garrison | Expanded RIF knowledge: Threat Obfuscation 67275 | -5/Garrison | Triggered checkpoint 67587 | -5/Garrison | Garrison Relay disabled 67775 | -5/Garrison | Spotted B-75 Beast 68724 | -5/Garrison | Triggered checkpoint 68968 | -5/Garrison | Discovered new exit (range 14) 69303 | -5/Garrison | Triggered checkpoint 69510 | -5/Garrison | Garrison Relay disabled 69553 | -5/Garrison | Triggered checkpoint 69782 | -5/Garrison | Discovered new exit (range 14) 70144 | -5/Garrison | Triggered checkpoint 70234 | -5/Garrison | Garrison Relay disabled 70318 | -5/Garrison | Triggered checkpoint 70677 | -5/Garrison | Discovered new exit (range 13) 70729 | -5/Garrison | Triggered checkpoint 70833 | -5/Garrison | Garrison Relay disabled 71550 | -5/Garrison | Found Unknown Device 71550 | -5/Garrison | Identified Quantum Capacitor 72488 | -5/Garrison | Identified exit to Factory 73388 | -5/Garrison | Entered Factory 73388 | -4/Factory | Accompanied by 50 allies 73388 | -4/Factory | Evolved 2 slots: Utility x2 73491 | -4/Factory | Discovered new exit (range 22) 73491 | -4/Factory | Identified exit to Research 74195 | -4/Factory | Fabricated A-27 Freighter? 74317 | -4/Factory | Found Prototype Device 74411 | -4/Factory | Fabricated A-27 Freighter? 74442 | -4/Factory | Garrison activated, responded to threat 74990 | -4/Factory | Fabricated P-60 Hacker? 75138 | -4/Factory | Identified exit to Garrison 75388 | -4/Factory | Garrison activated, responded to threat 75409 | -4/Factory | Entered Garrison 75409 | -4/Garrison | Accompanied by 41 allies 75412 | -4/Garrison | Triggered checkpoint 75421 | -4/Garrison | Expanded RIF knowledge: Zone Cloak 75814 | -4/Garrison | Triggered checkpoint 76116 | -4/Garrison | Garrison Relay disabled 76361 | -4/Garrison | Spotted B-86 Titan 76418 | -4/Garrison | Triggered checkpoint 78388 | -4/Garrison | Triggered checkpoint 79592 | -4/Garrison | Allies destroyed B-86 Titan 80189 | -4/Garrison | Discovered new exit (range 10) 80410 | -4/Garrison | Triggered checkpoint 80716 | -4/Garrison | Garrison Relay disabled 80847 | -4/Garrison | Garrison Relay disabled 80934 | -4/Garrison | Triggered checkpoint 81168 | -4/Garrison | Discovered new exit (range 8) 81204 | -4/Garrison | Triggered checkpoint 81306 | -4/Garrison | Garrison Relay disabled 83284 | -4/Garrison | Discovered new exit (range 15) 83317 | -4/Garrison | Identified exit to Factory 83755 | -4/Garrison | Entered Factory 83755 | -4/Factory | Accompanied by 46 allies 84007 | -4/Factory | Spotted B-86 Titan 84319 | -4/Factory | Fabricated P-70 Sage? 84928 | -4/Factory | Identified exit to Garrison 85117 | -4/Factory | Fabricated M-36 Artificer? 85246 | -4/Factory | Identified exit to Garrison 85357 | -4/Factory | Identified exit to Garrison 85463 | -4/Factory | Entered Garrison 85463 | -4/Garrison | Accompanied by 37 allies 85463 | -4/Garrison | 13 allies did not survive the journey 85854 | -4/Garrison | Triggered checkpoint 85858 | -4/Garrison | Garrison Relay disabled 86028 | -4/Garrison | Triggered checkpoint 86225 | -4/Garrison | Lost 5 parts (1p1n3u) 86718 | -4/Garrison | Triggered checkpoint 86824 | -4/Garrison | Discovered exit to Research (range 14) 86848 | -4/Garrison | Expanded RIF knowledge: Autooverride 86868 | -4/Garrison | Triggered checkpoint 86876 | -4/Garrison | Garrison Relay disabled 87025 | -4/Garrison | Discovered exit to Research (range 13) 87090 | -4/Garrison | Triggered checkpoint 87108 | -4/Garrison | Triggered checkpoint 87676 | -4/Garrison | Triggered checkpoint 88785 | -4/Garrison | Spotted B-86 Titan 88785 | -4/Garrison | Spotted B-86 Titan 88820 | -4/Garrison | Garrison Relay disabled 90108 | -4/Garrison | Triggered checkpoint 90154 | -4/Garrison | Discovered exit to Research (range 15) 90318 | -4/Garrison | Triggered checkpoint 91801 | -4/Garrison | Garrison Relay disabled 92153 | -4/Garrison | Garrison Relay disabled 94840 | -4/Garrison | Entered Research 94840 | -3/Research | Accompanied by 39 allies 94840 | -3/Research | Evolved 2 slots: Utility x2 95583 | -3/Research | Spotted B-86 Titan 95877 | -3/Research | Hijacked Titan 8a control node with streamctrl_high 96389 | -3/Research | Found Exp. Thermal Shield 96391 | -3/Research | Found Exp. Thermal Shield 96414 | -3/Research | Found Exp. Thermal Shield 96565 | -3/Research | P-80 Master assimilated allied Assassin 7b 96908 | -3/Research | Fabricated A-27 Freighter (x1) 96936 | -3/Research | Cargo convoy interrupted 97198 | -3/Research | Build established: Commander-Mutant 97342 | -3/Research | Discovered new exit (range 32) 97347 | -3/Research | Identified exit to Garrison 97482 | -3/Research | Fabricated A-27 Freighter (x1) 97813 | -3/Research | Identified exit to Garrison 98129 | -3/Research | Entered Garrison 98129 | -3/Garrison | Accompanied by 34 allies 98129 | -3/Garrison | 1 ally did not survive the journey 98284 | -3/Garrison | Triggered checkpoint 98381 | -3/Garrison | Garrison Relay disabled 98409 | -3/Garrison | Triggered checkpoint 98448 | -3/Garrison | Spotted B-86 Titan 98812 | -3/Garrison | Build established: Commander-Sprinter 98824 | -3/Garrison | Triggered checkpoint 98987 | -3/Garrison | Discovered new exit (range 12) 99014 | -3/Garrison | Triggered checkpoint 99026 | -3/Garrison | Garrison Relay disabled 99090 | -3/Garrison | Discovered new exit (range 15) 99310 | -3/Garrison | Garrison Relay disabled 99335 | -3/Garrison | Triggered checkpoint 99473 | -3/Garrison | Discovered new exit (range 8) 99476 | -3/Garrison | Identified exit to Research 99477 | -3/Garrison | Expanded RIF knowledge: Zone Cloak 99495 | -3/Garrison | Triggered checkpoint 99788 | -3/Garrison | Garrison Relay disabled 102696 | -3/Garrison | Entered Research 102696 | -2/Research | Accompanied by 42 allies 102696 | -2/Research | Evolved 2 slots: Utility x2 103114 | -2/Research | Repaired Imp. Utility Shielding? 103146 | -2/Research | Repaired Broken Imp. Remote Datajack 103768 | -2/Research | Fabricated A-27 Freighter? 104777 | -2/Research | Fabricated A-27 Freighter? 104980 | -2/Research | Identified exit to Garrison 105059 | -2/Research | Garrison activated, responded to threat 105062 | -2/Research | Discovered new exit (range 8) 105088 | -2/Research | Identified exit to Access 105220 | -2/Research | Assimilated Cyclops 9a with formatsys_high 105253 | -2/Research | Identified exit to Garrison 105407 | -2/Research | Fabricated P-80 Master (x2) 105409 | -2/Research | Entered Garrison 105409 | -2/Garrison | Accompanied by 33 allies 105409 | -2/Garrison | 4 allies did not survive the journey 105670 | -2/Garrison | Triggered checkpoint 105694 | -2/Garrison | Garrison Relay disabled 106464 | -2/Garrison | Spotted B-90 Cyclops 106680 | -2/Garrison | Triggered checkpoint 106681 | -2/Garrison | Triggered checkpoint 106683 | -2/Garrison | Triggered checkpoint 106684 | -2/Garrison | Triggered checkpoint 108136 | -2/Garrison | Discovered exit to Access (range 10) 108201 | -2/Garrison | Discovered exit to Access (range 11) 108227 | -2/Garrison | Discovered exit to Access (range 10) 108230 | -2/Garrison | Expanded RIF knowledge: Autooverride 108280 | -2/Garrison | Triggered checkpoint 108298 | -2/Garrison | Garrison Relay disabled 108432 | -2/Garrison | Triggered checkpoint 108599 | -2/Garrison | Garrison Relay disabled 108842 | -2/Garrison | Triggered checkpoint 111824 | -2/Garrison | Entered Access 111824 | -1/Access | Accompanied by 38 allies 111824 | -1/Access | Evolved 2 slots: Utility x2 112907 | -1/Access | Found Prototype Hackware 112939 | -1/Access | Identified exit to Garrison 112943 | -1/Access | Identified Exp. System Shield 113641 | -1/Access | Found Exp. Thermal Defense Suite 113808 | -1/Access | Fabricated P-80 Master (x2) 113808 | -1/Access | Master 10b assimilated hostile W-44 Eye 114508 | -1/Access | Spotted B-99 Colossus 115740 | -1/Access | Self-destructed Last Messages --------------- 15641_ >> MONITOR: Recycling Unit A002 accepting Hvy. Machine Gun (82%). 15642_ Acquired Plasma Sword. 15644_ >> MONITOR: Recycling Unit A002 accepting Biometal Leg (72%). 15647_ >> MONITOR: Recycling Unit A002 accepting Lgt. Ion Engine (87%). 15650_ >> MONITOR: Recycling Unit A002 accepting Welding Torch (76%). 15654_ Acquired 10 matter. 15657_ *9G-3EW reports 0b10 security level has lowered to 0. 15689_ >> MONITOR: Recycling Unit A002 accepting Structural Scanner (85%). 15692_ >> MONITOR: Recycling Unit A002 accepting Wheel (92%). 15695_ >> MONITOR: Recycling Unit A002 accepting Structural Scanner (95%). 15698_ >> MONITOR: Recycling Unit A002 accepting Terrain Scan Processor (100%). 15701_ >> MONITOR: Recycling Unit A002 accepting Terrain Scanner (85%). 15704_ >> MONITOR: Recycling Unit A002 accepting Wheel (77%). 15741_ -- NOTE: FIRST, FAB YOUR REMAINING ALLIES AS NEEDED 15741_ -- NOTE: Second, start force(ejecting) from the farthest garrisons 15741_ -- NOTE: Third, Top off on analysis hacks, finish off the fabricator network 15741_ -- NOTE: Fourth, get all the boiz in the townz into garrissinos [A new version of Cogmind is available, see F1 News page.] Map ----- +----------------------------------------------------+ | # ##????# !!*= #??????# #??????????? | | # ##????# %!!%%* #??????# #??????????? | | = ##????# %%%[=[[ ########+#####??????? | | # ##????# =![|!!%%| =#! * #??????? | | # ##????# %!!%%=!== *#[ #??????? | | # ##????# !=%%=!%!!!=%# """"" #??????? | | + ##############%%=!!=%# """""""" #??????? | | # # *!|#[!%|! [#! """""""" #??????? | | # ^ ^^ # %!#[%!! !#![ """"" #??????? | | + ^ # !+**=! !%+[[ #??????? | | # # #%[ ! %[#=! #??????? | | # # #* =%#* #??????? | | # %# # # #??????? | | # # # + #??????? | | # # # # #??????? | | + + !! [ # ##############??????? | | #+####### !! # = #???????????????????? | | ### !! #!%[ #???????????????????? | | ??# #%[ #???????????????????? | | #?##############= #???????????????????? | | #???????????#######+########???????????????? | | #???????????# A Y #???????????????? | | #???????????# m YgY! #???????????????? | | !!! #???????????# A Ag Y!!m #???????????????? | | !!= #???????????# m Y w!Y g#???????????????? | | !!= #???????????#p m@ AAAi Y#???????????????? | | #######???????????#pp i RoRg#???????????????? | | ??????????????????################???????????????? | | | | | | | | | | | | | | | | | | | | | | | | | | | | | | | | | | | | | | | | | | | | | +----------------------------------------------------+ Best States ------------- Heat Dissipation 64 Energy Generation 19 Energy Capacity 280 Matter Stores 300 Matter Capacity 300 Sight Range 16 Robot Scan Range 20 Terrain Scan Density 10 Additional Mass Support 9 Armor Coverage 525 Core Shielding 20 Propulsion Shielding 66 Utility Shielding 66 Weapon Shielding 90 Evasion (%) 65 Targeting Accuracy 12 Melee Accuracy 6 Recoil Reduction 2 Offensive Hacking 50 Defensive Hacking 78 Relay Coupler Types 10 Relay Coupler Value 126 Authchip Count 4 Trap Extractor Capacity 6 Item Schematics ----------------- Exp. Sensor Array | -9/Materials | Scanalyzed Adv. Signal Interpreter | -7/Factory | Hacked Imp. Cesium-ion Thruster | -7/Factory | Scanalyzed Imp. Propulsion Shielding | -7/Factory | Scanalyzed Imp. Utility Shielding | -7/Factory | Scanalyzed Exp. Utility Shielding | -1/Access | Hacked Adv. Gravity Neutralizer | -1/Access | Hacked Robot Schematics ------------------ M-13 Machinist | -10/Materials | Hacked O-16 Technician | -10/Materials | Hacked Y-45 Defender | -9/Materials | Hacked L-31 Rogue | -9/Storage | Hacked M-28 Smith | -8/Materials | Hacked T-07 Excavator | -7/Factory | Hacked L-41 Fighter | -7/Factory | Hacked P-60 Hacker | -6/Factory | Hacked I-36 Angel | -6/Factory | Hacked I-47 Archangel | -5/Factory | Hacked A-27 Freighter | -4/Factory | Hacked P-70 Sage | -4/Factory | Hacked M-36 Artificer | -4/Factory | Hacked P-80 Master | -2/Research | Hacked H-88 Terminator | -1/Access | Hacked Fabricated ------------ L-31 Rogue | x3 | -7/Factory L-31 Rogue | x3 | -7/Factory L-31 Rogue | x3 | -7/Factory L-41 Fighter | x3 | -7/Factory L-41 Fighter | x3 | -7/Factory L-41 Fighter | x3 | -7/Factory L-41 Fighter | x3 | -7/Factory P-60 Hacker | x2 | -6/Factory I-47 Archangel | x1 | -5/Factory I-47 Archangel | x1 | -5/Factory M-28 Smith | x1 | -5/Factory A-27 Freighter | x1 | -4/Factory A-27 Freighter | x1 | -4/Factory P-60 Hacker | x2 | -4/Factory P-70 Sage | x2 | -4/Factory M-36 Artificer | x1 | -4/Factory A-27 Freighter | x1 | -3/Research A-27 Freighter | x1 | -3/Research A-27 Freighter | x1 | -2/Research A-27 Freighter | x1 | -2/Research P-80 Master | x2 | -2/Research P-80 Master | x2 | -1/Access | Authchip Alien Tech Used ----------------- None Achievements -------------- None Challenges ------------ None Game ------ Seed MappingActuatorNullifier Manual? 0 Play Time 26:47:42 Cumulative 375.9 hours Start 2022.04.03 @ 11:17:58 End 2022.04.23 @ 11:54:59 Sessions 39 Manual Loads 0 Difficulty Rogue Special Mode None Game No. 136 Rogue 136 Adventurer 0 Explorer 0 Win Type - Total 13 Types 10/0/0/1/0/1/1/0/0 Lore% 84 Gallery% 86 Achievement% 78 Wizard Run 0 Options --------- ASCII 0 Keyboard 0 Movement Numpad Keybinds 0 Fullscreen 2 Font 18/Smallcaps Map View 76x50 Tactical HUD 1 Map Filters NONE Filters NONE Steam X RUN: faeb31b0-d839-4399-a18d-8cd36cd3ba25